Workbook

Sheet Chemical Inventory
A1: PI CODE | B1: PI Last Name | C1: PI First Name | D1: Bldg Code | E1: LAB | F1: Location Type | G1: In-Lab Location | H1: Chemical Name | I1: Physical State | J1: # of Containers | K1: Amount per Container | L1: Unit of Measure | M1: CAS # | N1: Vendor | O1: Catalog # | P1: Receipt Date | Q1: Expiration Date | R1: Contact | S1: Comments | T1: Date Entered | U1: BARCODE | V1: Private/Share | W1: LAST_CHANGED | X1: CONCENTRATION | Y1: CHEMICAL # | Z1: LOT # | AA1: SDS URL
A2: researcher | B2: last_name | C2: first_name | D2: building | E2: lab | F2: storage_device | G2: storage_location | H2: chemical_description | I2: physical_state | J2: receipt_quantity | K2: unit | L2: chemical_unit | M2: cas_num | N2: vendor | O2: catalog_number | P2: receipt_date | Q2: expiration_date | R2: contact | S2: comments | T2: date_entered | U2: ship_code | V2: private_share | W2: last_update | X2: concentration | Y2: chemical_number | Z2: lot_number | AA2: msds_url
A3: Enter the | B3: Enter the | C3: Enter the | D3: Enter the | E3: Enter the | F3: Searchable | G3: If your lab has a | H3: Enter the chemical name | I3: Choose | J3: How many | K3: Quantity of | L3: Searchable | M3: Enter the CAS | N3: This is looking for | O3: Enter the catalog | P3: Format for | Q3: Format for | S3: Free text box to use at your leisure. | T3: Format for | U3: This is where | V3: Choose whether or
A4: PI's Kerberos | B4: PI's last name | C4: PI's first name | D4: building number | E4: lab room | F4: dropdown list | G4: lab specific | H4: from the vendor here. | I4: between | J4: bottles | K4: the chemical | L4: dropdown list | M4: number for the | N4: VENDOR CODES | O4: number from the | P4: dates as | Q4: dates as | T4: dates as | U4: new or existing | V4: not to share chemicals
A5: username | B5: into this column. | C5: into this column. | D5: into this column. | E5: number | F5: to choose a listed | G5: location approved | I5: Solid, | J5: in the lab. | K5: in a container. | L5: to search for | M5: chemical. | N5: NOT VENDOR NAMES. | O5: vendor here. | P5: follows. | Q5: follows. | T5: follows. | U5: barcodes should | V5: with your department
A6: into this column. | D6: (i.e. 66 or NE47) | E6: here. | F6: storage type. | G6: by the EHS Office | I6: Liquid, | L6: unit. (G), (L), and | N6: Use dropdown to | P6: MM/DD/YYYY | Q6: MM/DD/YYYY | T6: MM/DD/YYYY | U6: be entered so that | V6: by typing "Private"
E7: (ex. 66-347) | G7: put that here. | I7: or Gas. | L7: (S) represent the | N7: pick the vendor, and | U7: they remain | V7: or "Share" here.
L8: phsyical state | N8: the vendor code | U8: constant in the
L9: associated with | N9: will populate the cell. | U9: system.
L10: the unit. | N10: For more information on
N11: this and other possibilities
N12: including a function
N13: to change Vendor Names
N14: to Vendor Codes, /=vendConv()/
N15: see the instructions sent to you
N16: by the EHS Office.

Sheet VendorCodes (hidden)
A1: Vendor Code | B1: Vendor Name | C1: Column2 | D1: Column3 | E1: Column4 | F1: Column 5 | G1: Column 6 | P1: Storage | Q1: Colu1 | R1: Colu2 | S1: Colu3 | T1: Colu4 | U1: Colu5 | AF1: Chemical Unit | AG1: Description | AH1: Col1 | AI1: Col2 | AJ1: Col3 | AK1: Col4 | AL1: Col5
A2: CLIMAX | B2: Climax | C2: =IF(ISNUMBER(SEARCH(DropBox,Jaco[Vendor Name])),1,0) -> 1 | D2: =IF(Jaco[Column2] = 1, SUM($C$2:C2),0) -> 1 | E2: =IFERROR(INDEX(Jaco[Vendor Name], MATCH(ROWS($E$2:E2),Jaco[Column3],0) ),"") -> Climax | G2: =OFFSET($E$2,,,COUNTIF(Jaco[Column4],"?*")) -> Climax | P2: Acid Cabinet | Q2: =IF(ISNUMBER(SEARCH(StorageBox,StorageTable6[Storage])),1,0) -> 1 | R2: =IF(StorageTable6[Colu1] = 1, SUM($Q$2:Q2),0) -> 1 | S2: =IFERROR(INDEX(StorageTable6[Storage],MATCH(ROWS($S$2:S2),StorageTable6[Colu2],0)),"") -> Acid Cabinet | U2: =OFFSET($S$2,,,COUNTIF(StorageTable6[Colu3],"?*")) -> Acid Cabinet | AF2: Boxes | AG2: Boxes | AH2: =IF(ISNUMBER(SEARCH(UnitBox,Units57[Chemical Unit])),1,0) -> 1 | AI2: =IF(Units57[Col1] = 1, SUM($AH$2:AH2),0) -> 1 | AJ2: =IFERROR(INDEX(Units57[Chemical Unit],MATCH(ROWS($AJ$2:AJ2),Units57[Col2],0)),"") -> Boxes | AL2: =OFFSET($AJ$2,,,COUNTIF(Units57[Col3],"?*")) -> Boxes
A3: 17001 | B3: Armstrong Flooring | C3: =IF(ISNUMBER(SEARCH(DropBox,Jaco[Vendor Name])),1,0) -> 1 | D3: =IF(Jaco[Column2] = 1, SUM($C$2:C3),0) -> 2 | E3: =IFERROR(INDEX(Jaco[Vendor Name], MATCH(ROWS($E$2:E3),Jaco[Column3],0) ),"") -> Armstrong Flooring | G3: =OFFSET($E$2,,,COUNTIF(Jaco[Column4],"?*")) -> Armstrong Flooring | P3: Base Cabinet | Q3: =IF(ISNUMBER(SEARCH(StorageBox,StorageTable6[Storage])),1,0) -> 1 | R3: =IF(StorageTable6[Colu1] = 1, SUM($Q$2:Q3),0) -> 2 | S3: =IFERROR(INDEX(StorageTable6[Storage],MATCH(ROWS($S$2:S3),StorageTable6[Colu2],0)),"") -> Base Cabinet | U3: =OFFSET($S$2,,,COUNTIF(StorageTable6[Colu3],"?*")) -> Base Cabinet | AF3: Cases | AG3: Cases | AH3: =IF(ISNUMBER(SEARCH(UnitBox,Units57[Chemical Unit])),1,0) -> 1 | AI3: =IF(Units57[Col1] = 1, SUM($AH$2:AH3),0) -> 2 | AJ3: =IFERROR(INDEX(Units57[Chemical Unit],MATCH(ROWS($AJ$2:AJ3),Units57[Col2],0)),"") -> Cases | AL3: =OFFSET($AJ$2,,,COUNTIF(Units57[Col3],"?*")) -> Cases | AN3: UnitBox | AO3: =IF(INDEX(M4,,) = 0, "",M4) -> 
A4: 17002 | B4: Kodak | C4: =IF(ISNUMBER(SEARCH(DropBox,Jaco[Vendor Name])),1,0) -> 1 | D4: =IF(Jaco[Column2] = 1, SUM($C$2:C4),0) -> 3 | E4: =IFERROR(INDEX(Jaco[Vendor Name], MATCH(ROWS($E$2:E4),Jaco[Column3],0) ),"") -> Kodak | G4: =OFFSET($E$2,,,COUNTIF(Jaco[Column4],"?*")) -> Kodak | K4: DropBox | L4: =IF(INDEX(M4,,) = 0, "",M4) ->  | M4: =CELL("contents") -> 0 | P4: Bay | Q4: =IF(ISNUMBER(SEARCH(StorageBox,StorageTable6[Storage])),1,0) -> 1 | R4: =IF(StorageTable6[Colu1] = 1, SUM($Q$2:Q4),0) -> 3 | S4: =IFERROR(INDEX(StorageTable6[Storage],MATCH(ROWS($S$2:S4),StorageTable6[Colu2],0)),"") -> Bay | U4: =OFFSET($S$2,,,COUNTIF(StorageTable6[Colu3],"?*")) -> Bay | Y4: StorageBox | Z4: =IF(INDEX(M4,,) = 0, "",M4) ->  | AB4: =CELL("contents") -> 0 | AF4: CC | AG4: Cubic Centimeters | AH4: =IF(ISNUMBER(SEARCH(UnitBox,Units57[Chemical Unit])),1,0) -> 1 | AI4: =IF(Units57[Col1] = 1, SUM($AH$2:AH4),0) -> 3 | AJ4: =IFERROR(INDEX(Units57[Chemical Unit],MATCH(ROWS($AJ$2:AJ4),Units57[Col2],0)),"") -> CC | AL4: =OFFSET($AJ$2,,,COUNTIF(Units57[Col3],"?*")) -> CC
A5: 3BSCICOR | B5: 3B Scientific Corporation | C5: =IF(ISNUMBER(SEARCH(DropBox,Jaco[Vendor Name])),1,0) -> 1 | D5: =IF(Jaco[Column2] = 1, SUM($C$2:C5),0) -> 4 | E5: =IFERROR(INDEX(Jaco[Vendor Name], MATCH(ROWS($E$2:E5),Jaco[Column3],0) ),"") -> 3B Scientific Corporation | G5: =OFFSET($E$2,,,COUNTIF(Jaco[Column4],"?*")) -> 3B Scientific Corporation | P5: Bench Area | Q5: =IF(ISNUMBER(SEARCH(StorageBox,StorageTable6[Storage])),1,0) -> 1 | R5: =IF(StorageTable6[Colu1] = 1, SUM($Q$2:Q5),0) -> 4 | S5: =IFERROR(INDEX(StorageTable6[Storage],MATCH(ROWS($S$2:S5),StorageTable6[Colu2],0)),"") -> Bench Area | U5: =OFFSET($S$2,,,COUNTIF(StorageTable6[Colu3],"?*")) -> Bench Area | AF5: CU.FT. | AG5: Cubic Feet (Gas) | AH5: =IF(ISNUMBER(SEARCH(UnitBox,Units57[Chemical Unit])),1,0) -> 1 | AI5: =IF(Units57[Col1] = 1, SUM($AH$2:AH5),0) -> 4 | AJ5: =IFERROR(INDEX(Units57[Chemical Unit],MATCH(ROWS($AJ$2:AJ5),Units57[Col2],0)),"") -> CU.FT. | AL5: =OFFSET($AJ$2,,,COUNTIF(Units57[Col3],"?*")) -> CU.FT. | AN5: UnitFilter
A6: 3BSCICORP | B6: 3B SCIENTIFIC CORPORATION | C6: =IF(ISNUMBER(SEARCH(DropBox,Jaco[Vendor Name])),1,0) -> 1 | D6: =IF(Jaco[Column2] = 1, SUM($C$2:C6),0) -> 5 | E6: =IFERROR(INDEX(Jaco[Vendor Name], MATCH(ROWS($E$2:E6),Jaco[Column3],0) ),"") -> 3B SCIENTIFIC CORPORATION | G6: =OFFSET($E$2,,,COUNTIF(Jaco[Column4],"?*")) -> 3B SCIENTIFIC CORPORATION | P6: Bin | Q6: =IF(ISNUMBER(SEARCH(StorageBox,StorageTable6[Storage])),1,0) -> 1 | R6: =IF(StorageTable6[Colu1] = 1, SUM($Q$2:Q6),0) -> 5 | S6: =IFERROR(INDEX(StorageTable6[Storage],MATCH(ROWS($S$2:S6),StorageTable6[Colu2],0)),"") -> Bin | U6: =OFFSET($S$2,,,COUNTIF(StorageTable6[Colu3],"?*")) -> Bin | Y6: StorageFilter | AF6: CU.FT.(L) | AG6: Cubic Feet (Liquid) | AH6: =IF(ISNUMBER(SEARCH(UnitBox,Units57[Chemical Unit])),1,0) -> 1 | AI6: =IF(Units57[Col1] = 1, SUM($AH$2:AH6),0) -> 5 | AJ6: =IFERROR(INDEX(Units57[Chemical Unit],MATCH(ROWS($AJ$2:AJ6),Units57[Col2],0)),"") -> CU.FT.(L) | AL6: =OFFSET($AJ$2,,,COUNTIF(Units57[Col3],"?*")) -> CU.FT.(L)
A7: 3D SYS | B7: 3D SYSTEMS | C7: =IF(ISNUMBER(SEARCH(DropBox,Jaco[Vendor Name])),1,0) -> 1 | D7: =IF(Jaco[Column2] = 1, SUM($C$2:C7),0) -> 6 | E7: =IFERROR(INDEX(Jaco[Vendor Name], MATCH(ROWS($E$2:E7),Jaco[Column3],0) ),"") -> 3D SYSTEMS | G7: =OFFSET($E$2,,,COUNTIF(Jaco[Column4],"?*")) -> 3D SYSTEMS | P7: Cabinet | Q7: =IF(ISNUMBER(SEARCH(StorageBox,StorageTable6[Storage])),1,0) -> 1 | R7: =IF(StorageTable6[Colu1] = 1, SUM($Q$2:Q7),0) -> 6 | S7: =IFERROR(INDEX(StorageTable6[Storage],MATCH(ROWS($S$2:S7),StorageTable6[Colu2],0)),"") -> Cabinet | U7: =OFFSET($S$2,,,COUNTIF(StorageTable6[Colu3],"?*")) -> Cabinet | AF7: CU.FT.(S) | AG7: Cubic Feet (Solid) | AH7: =IF(ISNUMBER(SEARCH(UnitBox,Units57[Chemical Unit])),1,0) -> 1 | AI7: =IF(Units57[Col1] = 1, SUM($AH$2:AH7),0) -> 6 | AJ7: =IFERROR(INDEX(Units57[Chemical Unit],MATCH(ROWS($AJ$2:AJ7),Units57[Col2],0)),"") -> CU.FT.(S) | AL7: =OFFSET($AJ$2,,,COUNTIF(Units57[Col3],"?*")) -> CU.FT.(S)
A8: 3IN1 | B8: 3 in One | C8: =IF(ISNUMBER(SEARCH(DropBox,Jaco[Vendor Name])),1,0) -> 1 | D8: =IF(Jaco[Column2] = 1, SUM($C$2:C8),0) -> 7 | E8: =IFERROR(INDEX(Jaco[Vendor Name], MATCH(ROWS($E$2:E8),Jaco[Column3],0) ),"") -> 3 in One | G8: =OFFSET($E$2,,,COUNTIF(Jaco[Column4],"?*")) -> 3 in One | P8: Cold Room | Q8: =IF(ISNUMBER(SEARCH(StorageBox,StorageTable6[Storage])),1,0) -> 1 | R8: =IF(StorageTable6[Colu1] = 1, SUM($Q$2:Q8),0) -> 7 | S8: =IFERROR(INDEX(StorageTable6[Storage],MATCH(ROWS($S$2:S8),StorageTable6[Colu2],0)),"") -> Cold Room | U8: =OFFSET($S$2,,,COUNTIF(StorageTable6[Colu3],"?*")) -> Cold Room | AF8: Cylinders | AG8: Cylinders | AH8: =IF(ISNUMBER(SEARCH(UnitBox,Units57[Chemical Unit])),1,0) -> 1 | AI8: =IF(Units57[Col1] = 1, SUM($AH$2:AH8),0) -> 7 | AJ8: =IFERROR(INDEX(Units57[Chemical Unit],MATCH(ROWS($AJ$2:AJ8),Units57[Col2],0)),"") -> Cylinders | AL8: =OFFSET($AJ$2,,,COUNTIF(Units57[Col3],"?*")) -> Cylinders
A9: 3M | B9: 3M Corporate Headquarters | C9: =IF(ISNUMBER(SEARCH(DropBox,Jaco[Vendor Name])),1,0) -> 1 | D9: =IF(Jaco[Column2] = 1, SUM($C$2:C9),0) -> 8 | E9: =IFERROR(INDEX(Jaco[Vendor Name], MATCH(ROWS($E$2:E9),Jaco[Column3],0) ),"") -> 3M Corporate Headquarters | G9: =OFFSET($E$2,,,COUNTIF(Jaco[Column4],"?*")) -> 3M Corporate Headquarters | P9: Corrosives Cabinet | Q9: =IF(ISNUMBER(SEARCH(StorageBox,StorageTable6[Storage])),1,0) -> 1 | R9: =IF(StorageTable6[Colu1] = 1, SUM($Q$2:Q9),0) -> 8 | S9: =IFERROR(INDEX(StorageTable6[Storage],MATCH(ROWS($S$2:S9),StorageTable6[Colu2],0)),"") -> Corrosives Cabinet | U9: =OFFSET($S$2,,,COUNTIF(StorageTable6[Colu3],"?*")) -> Corrosives Cabinet | AF9: Each | AG9: Each | AH9: =IF(ISNUMBER(SEARCH(UnitBox,Units57[Chemical Unit])),1,0) -> 1 | AI9: =IF(Units57[Col1] = 1, SUM($AH$2:AH9),0) -> 8 | AJ9: =IFERROR(INDEX(Units57[Chemical Unit],MATCH(ROWS($AJ$2:AJ9),Units57[Col2],0)),"") -> Each | AL9: =OFFSET($AJ$2,,,COUNTIF(Units57[Col3],"?*")) -> Each
A10: 3MC | B10: 3M | C10: =IF(ISNUMBER(SEARCH(DropBox,Jaco[Vendor Name])),1,0) -> 1 | D10: =IF(Jaco[Column2] = 1, SUM($C$2:C10),0) -> 9 | E10: =IFERROR(INDEX(Jaco[Vendor Name], MATCH(ROWS($E$2:E10),Jaco[Column3],0) ),"") -> 3M | G10: =OFFSET($E$2,,,COUNTIF(Jaco[Column4],"?*")) -> 3M | P10: Dessicator | Q10: =IF(ISNUMBER(SEARCH(StorageBox,StorageTable6[Storage])),1,0) -> 1 | R10: =IF(StorageTable6[Colu1] = 1, SUM($Q$2:Q10),0) -> 9 | S10: =IFERROR(INDEX(StorageTable6[Storage],MATCH(ROWS($S$2:S10),StorageTable6[Colu2],0)),"") -> Dessicator | U10: =OFFSET($S$2,,,COUNTIF(StorageTable6[Colu3],"?*")) -> Dessicator | AF10: Fluid Ounces | AG10: Fluid Ounces | AH10: =IF(ISNUMBER(SEARCH(UnitBox,Units57[Chemical Unit])),1,0) -> 1 | AI10: =IF(Units57[Col1] = 1, SUM($AH$2:AH10),0) -> 9 | AJ10: =IFERROR(INDEX(Units57[Chemical Unit],MATCH(ROWS($AJ$2:AJ10),Units57[Col2],0)),"") -> Fluid Ounces | AL10: =OFFSET($AJ$2,,,COUNTIF(Units57[Col3],"?*")) -> Fluid Ounces
A11: 5 PRIME | B11: 5 PRIME Inc. | C11: =IF(ISNUMBER(SEARCH(DropBox,Jaco[Vendor Name])),1,0) -> 1 | D11: =IF(Jaco[Column2] = 1, SUM($C$2:C11),0) -> 10 | E11: =IFERROR(INDEX(Jaco[Vendor Name], MATCH(ROWS($E$2:E11),Jaco[Column3],0) ),"") -> 5 PRIME Inc. | G11: =OFFSET($E$2,,,COUNTIF(Jaco[Column4],"?*")) -> 5 PRIME Inc. | P11: Flammables Cabinet | Q11: =IF(ISNUMBER(SEARCH(StorageBox,StorageTable6[Storage])),1,0) -> 1 | R11: =IF(StorageTable6[Colu1] = 1, SUM($Q$2:Q11),0) -> 10 | S11: =IFERROR(INDEX(StorageTable6[Storage],MATCH(ROWS($S$2:S11),StorageTable6[Colu2],0)),"") -> Flammables Cabinet | U11: =OFFSET($S$2,,,COUNTIF(StorageTable6[Colu3],"?*")) -> Flammables Cabinet | AF11: G | AG11: Grams (Solid) | AH11: =IF(ISNUMBER(SEARCH(UnitBox,Units57[Chemical Unit])),1,0) -> 1 | AI11: =IF(Units57[Col1] = 1, SUM($AH$2:AH11),0) -> 10 | AJ11: =IFERROR(INDEX(Units57[Chemical Unit],MATCH(ROWS($AJ$2:AJ11),Units57[Col2],0)),"") -> G | AL11: =OFFSET($AJ$2,,,COUNTIF(Units57[Col3],"?*")) -> G
A12: A&APHARM | B12: A&A PHARMACHEM | C12: =IF(ISNUMBER(SEARCH(DropBox,Jaco[Vendor Name])),1,0) -> 1 | D12: =IF(Jaco[Column2] = 1, SUM($C$2:C12),0) -> 11 | E12: =IFERROR(INDEX(Jaco[Vendor Name], MATCH(ROWS($E$2:E12),Jaco[Column3],0) ),"") -> A&A PHARMACHEM | G12: =OFFSET($E$2,,,COUNTIF(Jaco[Column4],"?*")) -> A&A PHARMACHEM | P12: Freezer | Q12: =IF(ISNUMBER(SEARCH(StorageBox,StorageTable6[Storage])),1,0) -> 1 | R12: =IF(StorageTable6[Colu1] = 1, SUM($Q$2:Q12),0) -> 11 | S12: =IFERROR(INDEX(StorageTable6[Storage],MATCH(ROWS($S$2:S12),StorageTable6[Colu2],0)),"") -> Freezer | U12: =OFFSET($S$2,,,COUNTIF(StorageTable6[Colu3],"?*")) -> Freezer | AF12: G (G) | AG12: Grams (Gas) | AH12: =IF(ISNUMBER(SEARCH(UnitBox,Units57[Chemical Unit])),1,0) -> 1 | AI12: =IF(Units57[Col1] = 1, SUM($AH$2:AH12),0) -> 11 | AJ12: =IFERROR(INDEX(Units57[Chemical Unit],MATCH(ROWS($AJ$2:AJ12),Units57[Col2],0)),"") -> G (G) | AL12: =OFFSET($AJ$2,,,COUNTIF(Units57[Col3],"?*")) -> G (G)
A13: AAESAR | B13: ALFA AESAR, A JOHNSON MATTHEY COMPA | C13: =IF(ISNUMBER(SEARCH(DropBox,Jaco[Vendor Name])),1,0) -> 1 | D13: =IF(Jaco[Column2] = 1, SUM($C$2:C13),0) -> 12 | E13: =IFERROR(INDEX(Jaco[Vendor Name], MATCH(ROWS($E$2:E13),Jaco[Column3],0) ),"") -> ALFA AESAR, A JOHNSON MATTHEY COMPA | G13: =OFFSET($E$2,,,COUNTIF(Jaco[Column4],"?*")) -> ALFA AESAR, A JOHNSON MATTHEY COMPA | P13: Fume Hood | Q13: =IF(ISNUMBER(SEARCH(StorageBox,StorageTable6[Storage])),1,0) -> 1 | R13: =IF(StorageTable6[Colu1] = 1, SUM($Q$2:Q13),0) -> 12 | S13: =IFERROR(INDEX(StorageTable6[Storage],MATCH(ROWS($S$2:S13),StorageTable6[Colu2],0)),"") -> Fume Hood | U13: =OFFSET($S$2,,,COUNTIF(StorageTable6[Colu3],"?*")) -> Fume Hood | AF13: G (L) | AG13: Grams (Liquid) | AH13: =IF(ISNUMBER(SEARCH(UnitBox,Units57[Chemical Unit])),1,0) -> 1 | AI13: =IF(Units57[Col1] = 1, SUM($AH$2:AH13),0) -> 12 | AJ13: =IFERROR(INDEX(Units57[Chemical Unit],MATCH(ROWS($AJ$2:AJ13),Units57[Col2],0)),"") -> G (L) | AL13: =OFFSET($AJ$2,,,COUNTIF(Units57[Col3],"?*")) -> G (L)
A14: AAESARAVO | B14: ALFA AESAR, AVOCADO, LANCASTER | C14: =IF(ISNUMBER(SEARCH(DropBox,Jaco[Vendor Name])),1,0) -> 1 | D14: =IF(Jaco[Column2] = 1, SUM($C$2:C14),0) -> 13 | E14: =IFERROR(INDEX(Jaco[Vendor Name], MATCH(ROWS($E$2:E14),Jaco[Column3],0) ),"") -> ALFA AESAR, AVOCADO, LANCASTER | G14: =OFFSET($E$2,,,COUNTIF(Jaco[Column4],"?*")) -> ALFA AESAR, AVOCADO, LANCASTER | P14: Fume Hood Cabinet | Q14: =IF(ISNUMBER(SEARCH(StorageBox,StorageTable6[Storage])),1,0) -> 1 | R14: =IF(StorageTable6[Colu1] = 1, SUM($Q$2:Q14),0) -> 13 | S14: =IFERROR(INDEX(StorageTable6[Storage],MATCH(ROWS($S$2:S14),StorageTable6[Colu2],0)),"") -> Fume Hood Cabinet | U14: =OFFSET($S$2,,,COUNTIF(StorageTable6[Colu3],"?*")) -> Fume Hood Cabinet | AF14: Gal | AG14: Gallons | AH14: =IF(ISNUMBER(SEARCH(UnitBox,Units57[Chemical Unit])),1,0) -> 1 | AI14: =IF(Units57[Col1] = 1, SUM($AH$2:AH14),0) -> 13 | AJ14: =IFERROR(INDEX(Units57[Chemical Unit],MATCH(ROWS($AJ$2:AJ14),Units57[Col2],0)),"") -> Gal | AL14: =OFFSET($AJ$2,,,COUNTIF(Units57[Col3],"?*")) -> Gal
A15: AALEN | B15: Aalen Chemical Co., Ltd. | C15: =IF(ISNUMBER(SEARCH(DropBox,Jaco[Vendor Name])),1,0) -> 1 | D15: =IF(Jaco[Column2] = 1, SUM($C$2:C15),0) -> 14 | E15: =IFERROR(INDEX(Jaco[Vendor Name], MATCH(ROWS($E$2:E15),Jaco[Column3],0) ),"") -> Aalen Chemical Co., Ltd. | G15: =OFFSET($E$2,,,COUNTIF(Jaco[Column4],"?*")) -> Aalen Chemical Co., Ltd. | P15: Gas Cabinet | Q15: =IF(ISNUMBER(SEARCH(StorageBox,StorageTable6[Storage])),1,0) -> 1 | R15: =IF(StorageTable6[Colu1] = 1, SUM($Q$2:Q15),0) -> 14 | S15: =IFERROR(INDEX(StorageTable6[Storage],MATCH(ROWS($S$2:S15),StorageTable6[Colu2],0)),"") -> Gas Cabinet | U15: =OFFSET($S$2,,,COUNTIF(StorageTable6[Colu3],"?*")) -> Gas Cabinet | AF15: KG (G) | AG15: Kilograms (Gas) | AH15: =IF(ISNUMBER(SEARCH(UnitBox,Units57[Chemical Unit])),1,0) -> 1 | AI15: =IF(Units57[Col1] = 1, SUM($AH$2:AH15),0) -> 14 | AJ15: =IFERROR(INDEX(Units57[Chemical Unit],MATCH(ROWS($AJ$2:AJ15),Units57[Col2],0)),"") -> KG (G) | AL15: =OFFSET($AJ$2,,,COUNTIF(Units57[Col3],"?*")) -> KG (G)
A16: Aaper | B16: Aaper | C16: =IF(ISNUMBER(SEARCH(DropBox,Jaco[Vendor Name])),1,0) -> 1 | D16: =IF(Jaco[Column2] = 1, SUM($C$2:C16),0) -> 15 | E16: =IFERROR(INDEX(Jaco[Vendor Name], MATCH(ROWS($E$2:E16),Jaco[Column3],0) ),"") -> Aaper | G16: =OFFSET($E$2,,,COUNTIF(Jaco[Column4],"?*")) -> Aaper | P16: Glove Box | Q16: =IF(ISNUMBER(SEARCH(StorageBox,StorageTable6[Storage])),1,0) -> 1 | R16: =IF(StorageTable6[Colu1] = 1, SUM($Q$2:Q16),0) -> 15 | S16: =IFERROR(INDEX(StorageTable6[Storage],MATCH(ROWS($S$2:S16),StorageTable6[Colu2],0)),"") -> Glove Box | U16: =OFFSET($S$2,,,COUNTIF(StorageTable6[Colu3],"?*")) -> Glove Box | AF16: KG | AG16: Kilograms (Solid) | AH16: =IF(ISNUMBER(SEARCH(UnitBox,Units57[Chemical Unit])),1,0) -> 1 | AI16: =IF(Units57[Col1] = 1, SUM($AH$2:AH16),0) -> 15 | AJ16: =IFERROR(INDEX(Units57[Chemical Unit],MATCH(ROWS($AJ$2:AJ16),Units57[Col2],0)),"") -> KG | AL16: =OFFSET($AJ$2,,,COUNTIF(Units57[Col3],"?*")) -> KG
A17: AAPPTEC | B17: AAPPTec, LLC | C17: =IF(ISNUMBER(SEARCH(DropBox,Jaco[Vendor Name])),1,0) -> 1 | D17: =IF(Jaco[Column2] = 1, SUM($C$2:C17),0) -> 16 | E17: =IFERROR(INDEX(Jaco[Vendor Name], MATCH(ROWS($E$2:E17),Jaco[Column3],0) ),"") -> AAPPTec, LLC | G17: =OFFSET($E$2,,,COUNTIF(Jaco[Column4],"?*")) -> AAPPTec, LLC | P17: Other | Q17: =IF(ISNUMBER(SEARCH(StorageBox,StorageTable6[Storage])),1,0) -> 1 | R17: =IF(StorageTable6[Colu1] = 1, SUM($Q$2:Q17),0) -> 16 | S17: =IFERROR(INDEX(StorageTable6[Storage],MATCH(ROWS($S$2:S17),StorageTable6[Colu2],0)),"") -> Other | U17: =OFFSET($S$2,,,COUNTIF(StorageTable6[Colu3],"?*")) -> Other | AF17: KG (L) | AG17: Kilograms (Liquid) | AH17: =IF(ISNUMBER(SEARCH(UnitBox,Units57[Chemical Unit])),1,0) -> 1 | AI17: =IF(Units57[Col1] = 1, SUM($AH$2:AH17),0) -> 16 | AJ17: =IFERROR(INDEX(Units57[Chemical Unit],MATCH(ROWS($AJ$2:AJ17),Units57[Col2],0)),"") -> KG (L) | AL17: =OFFSET($AJ$2,,,COUNTIF(Units57[Col3],"?*")) -> KG (L)
A18: AAT-100 | B18: Advanced Adhesive Technologies Inc | C18: =IF(ISNUMBER(SEARCH(DropBox,Jaco[Vendor Name])),1,0) -> 1 | D18: =IF(Jaco[Column2] = 1, SUM($C$2:C18),0) -> 17 | E18: =IFERROR(INDEX(Jaco[Vendor Name], MATCH(ROWS($E$2:E18),Jaco[Column3],0) ),"") -> Advanced Adhesive Technologies Inc | G18: =OFFSET($E$2,,,COUNTIF(Jaco[Column4],"?*")) -> Advanced Adhesive Technologies Inc | P18: Refrigerator | Q18: =IF(ISNUMBER(SEARCH(StorageBox,StorageTable6[Storage])),1,0) -> 1 | R18: =IF(StorageTable6[Colu1] = 1, SUM($Q$2:Q18),0) -> 17 | S18: =IFERROR(INDEX(StorageTable6[Storage],MATCH(ROWS($S$2:S18),StorageTable6[Colu2],0)),"") -> Refrigerator | U18: =OFFSET($S$2,,,COUNTIF(StorageTable6[Colu3],"?*")) -> Refrigerator | AF18: KIT | AG18: kit | AH18: =IF(ISNUMBER(SEARCH(UnitBox,Units57[Chemical Unit])),1,0) -> 1 | AI18: =IF(Units57[Col1] = 1, SUM($AH$2:AH18),0) -> 17 | AJ18: =IFERROR(INDEX(Units57[Chemical Unit],MATCH(ROWS($AJ$2:AJ18),Units57[Col2],0)),"") -> KIT | AL18: =OFFSET($AJ$2,,,COUNTIF(Units57[Col3],"?*")) -> KIT
A19: ABBOTT | B19: Abbott Laboratories | C19: =IF(ISNUMBER(SEARCH(DropBox,Jaco[Vendor Name])),1,0) -> 1 | D19: =IF(Jaco[Column2] = 1, SUM($C$2:C19),0) -> 18 | E19: =IFERROR(INDEX(Jaco[Vendor Name], MATCH(ROWS($E$2:E19),Jaco[Column3],0) ),"") -> Abbott Laboratories | G19: =OFFSET($E$2,,,COUNTIF(Jaco[Column4],"?*")) -> Abbott Laboratories | P19: Shelf | Q19: =IF(ISNUMBER(SEARCH(StorageBox,StorageTable6[Storage])),1,0) -> 1 | R19: =IF(StorageTable6[Colu1] = 1, SUM($Q$2:Q19),0) -> 18 | S19: =IFERROR(INDEX(StorageTable6[Storage],MATCH(ROWS($S$2:S19),StorageTable6[Colu2],0)),"") -> Shelf | U19: =OFFSET($S$2,,,COUNTIF(StorageTable6[Colu3],"?*")) -> Shelf | AF19: LB (S) | AG19: Pounds (Solid) | AH19: =IF(ISNUMBER(SEARCH(UnitBox,Units57[Chemical Unit])),1,0) -> 1 | AI19: =IF(Units57[Col1] = 1, SUM($AH$2:AH19),0) -> 18 | AJ19: =IFERROR(INDEX(Units57[Chemical Unit],MATCH(ROWS($AJ$2:AJ19),Units57[Col2],0)),"") -> LB (S) | AL19: =OFFSET($AJ$2,,,COUNTIF(Units57[Col3],"?*")) -> LB (S)
A20: ABC | B20: ABC COMPOUNDING | C20: =IF(ISNUMBER(SEARCH(DropBox,Jaco[Vendor Name])),1,0) -> 1 | D20: =IF(Jaco[Column2] = 1, SUM($C$2:C20),0) -> 19 | E20: =IFERROR(INDEX(Jaco[Vendor Name], MATCH(ROWS($E$2:E20),Jaco[Column3],0) ),"") -> ABC COMPOUNDING | G20: =OFFSET($E$2,,,COUNTIF(Jaco[Column4],"?*")) -> ABC COMPOUNDING | P20: Storage Area | Q20: =IF(ISNUMBER(SEARCH(StorageBox,StorageTable6[Storage])),1,0) -> 1 | R20: =IF(StorageTable6[Colu1] = 1, SUM($Q$2:Q20),0) -> 19 | S20: =IFERROR(INDEX(StorageTable6[Storage],MATCH(ROWS($S$2:S20),StorageTable6[Colu2],0)),"") -> Storage Area | U20: =OFFSET($S$2,,,COUNTIF(StorageTable6[Colu3],"?*")) -> Storage Area | AF20: LB | AG20: Pounds (Gas) | AH20: =IF(ISNUMBER(SEARCH(UnitBox,Units57[Chemical Unit])),1,0) -> 1 | AI20: =IF(Units57[Col1] = 1, SUM($AH$2:AH20),0) -> 19 | AJ20: =IFERROR(INDEX(Units57[Chemical Unit],MATCH(ROWS($AJ$2:AJ20),Units57[Col2],0)),"") -> LB | AL20: =OFFSET($AJ$2,,,COUNTIF(Units57[Col3],"?*")) -> LB
A21: ABCAM | B21: Abcam Inc. | C21: =IF(ISNUMBER(SEARCH(DropBox,Jaco[Vendor Name])),1,0) -> 1 | D21: =IF(Jaco[Column2] = 1, SUM($C$2:C21),0) -> 20 | E21: =IFERROR(INDEX(Jaco[Vendor Name], MATCH(ROWS($E$2:E21),Jaco[Column3],0) ),"") -> Abcam Inc. | G21: =OFFSET($E$2,,,COUNTIF(Jaco[Column4],"?*")) -> Abcam Inc. | P21: Storage Cabinet | Q21: =IF(ISNUMBER(SEARCH(StorageBox,StorageTable6[Storage])),1,0) -> 1 | R21: =IF(StorageTable6[Colu1] = 1, SUM($Q$2:Q21),0) -> 20 | S21: =IFERROR(INDEX(StorageTable6[Storage],MATCH(ROWS($S$2:S21),StorageTable6[Colu2],0)),"") -> Storage Cabinet | U21: =OFFSET($S$2,,,COUNTIF(StorageTable6[Colu3],"?*")) -> Storage Cabinet | AF21: LB (L) | AG21: Pounds (Liquid) | AH21: =IF(ISNUMBER(SEARCH(UnitBox,Units57[Chemical Unit])),1,0) -> 1 | AI21: =IF(Units57[Col1] = 1, SUM($AH$2:AH21),0) -> 20 | AJ21: =IFERROR(INDEX(Units57[Chemical Unit],MATCH(ROWS($AJ$2:AJ21),Units57[Col2],0)),"") -> LB (L) | AL21: =OFFSET($AJ$2,,,COUNTIF(Units57[Col3],"?*")) -> LB (L)
A22: ABCAMLTD | B22: Abcam Limited | C22: =IF(ISNUMBER(SEARCH(DropBox,Jaco[Vendor Name])),1,0) -> 1 | D22: =IF(Jaco[Column2] = 1, SUM($C$2:C22),0) -> 21 | E22: =IFERROR(INDEX(Jaco[Vendor Name], MATCH(ROWS($E$2:E22),Jaco[Column3],0) ),"") -> Abcam Limited | G22: =OFFSET($E$2,,,COUNTIF(Jaco[Column4],"?*")) -> Abcam Limited | Q22: =IF(ISNUMBER(SEARCH(StorageBox,StorageTable6[Storage])),1,0) -> 0 | R22: =IF(StorageTable6[Colu1] = 1, SUM($Q$2:Q22),0) -> 0 | S22: =IFERROR(INDEX(StorageTable6[Storage],MATCH(ROWS($S$2:S22),StorageTable6[Colu2],0)),"") ->  | U22: =OFFSET($S$2,,,COUNTIF(StorageTable6[Colu3],"?*")) ->  | AF22: Liters (S) | AG22: Liters (Solid) | AH22: =IF(ISNUMBER(SEARCH(UnitBox,Units57[Chemical Unit])),1,0) -> 1 | AI22: =IF(Units57[Col1] = 1, SUM($AH$2:AH22),0) -> 21 | AJ22: =IFERROR(INDEX(Units57[Chemical Unit],MATCH(ROWS($AJ$2:AJ22),Units57[Col2],0)),"") -> Liters (S) | AL22: =OFFSET($AJ$2,,,COUNTIF(Units57[Col3],"?*")) -> Liters (S)
A23: ABCHEM | B23: AB Chem. Inc. | C23: =IF(ISNUMBER(SEARCH(DropBox,Jaco[Vendor Name])),1,0) -> 1 | D23: =IF(Jaco[Column2] = 1, SUM($C$2:C23),0) -> 22 | E23: =IFERROR(INDEX(Jaco[Vendor Name], MATCH(ROWS($E$2:E23),Jaco[Column3],0) ),"") -> AB Chem. Inc. | G23: =OFFSET($E$2,,,COUNTIF(Jaco[Column4],"?*")) -> AB Chem. Inc. | Q23: =IF(ISNUMBER(SEARCH(StorageBox,StorageTable6[Storage])),1,0) -> 0 | R23: =IF(StorageTable6[Colu1] = 1, SUM($Q$2:Q23),0) -> 0 | S23: =IFERROR(INDEX(StorageTable6[Storage],MATCH(ROWS($S$2:S23),StorageTable6[Colu2],0)),"") ->  | U23: =OFFSET($S$2,,,COUNTIF(StorageTable6[Colu3],"?*")) ->  | AF23: Liters | AG23: Liters (Liquid) | AH23: =IF(ISNUMBER(SEARCH(UnitBox,Units57[Chemical Unit])),1,0) -> 1 | AI23: =IF(Units57[Col1] = 1, SUM($AH$2:AH23),0) -> 22 | AJ23: =IFERROR(INDEX(Units57[Chemical Unit],MATCH(ROWS($AJ$2:AJ23),Units57[Col2],0)),"") -> Liters | AL23: =OFFSET($AJ$2,,,COUNTIF(Units57[Col3],"?*")) -> Liters
A24: ABCM | B24: Abcam | C24: =IF(ISNUMBER(SEARCH(DropBox,Jaco[Vendor Name])),1,0) -> 1 | D24: =IF(Jaco[Column2] = 1, SUM($C$2:C24),0) -> 23 | E24: =IFERROR(INDEX(Jaco[Vendor Name], MATCH(ROWS($E$2:E24),Jaco[Column3],0) ),"") -> Abcam | G24: =OFFSET($E$2,,,COUNTIF(Jaco[Column4],"?*")) -> Abcam | Q24: =IF(ISNUMBER(SEARCH(StorageBox,StorageTable6[Storage])),1,0) -> 0 | R24: =IF(StorageTable6[Colu1] = 1, SUM($Q$2:Q24),0) -> 0 | S24: =IFERROR(INDEX(StorageTable6[Storage],MATCH(ROWS($S$2:S24),StorageTable6[Colu2],0)),"") ->  | U24: =OFFSET($S$2,,,COUNTIF(StorageTable6[Colu3],"?*")) ->  | AF24: Liters (G) | AG24: Liters (Gas) | AH24: =IF(ISNUMBER(SEARCH(UnitBox,Units57[Chemical Unit])),1,0) -> 1 | AI24: =IF(Units57[Col1] = 1, SUM($AH$2:AH24),0) -> 23 | AJ24: =IFERROR(INDEX(Units57[Chemical Unit],MATCH(ROWS($AJ$2:AJ24),Units57[Col2],0)),"") -> Liters (G) | AL24: =OFFSET($AJ$2,,,COUNTIF(Units57[Col3],"?*")) -> Liters (G)
A25: ABCR | B25: ABCR | C25: =IF(ISNUMBER(SEARCH(DropBox,Jaco[Vendor Name])),1,0) -> 1 | D25: =IF(Jaco[Column2] = 1, SUM($C$2:C25),0) -> 24 | E25: =IFERROR(INDEX(Jaco[Vendor Name], MATCH(ROWS($E$2:E25),Jaco[Column3],0) ),"") -> ABCR | G25: =OFFSET($E$2,,,COUNTIF(Jaco[Column4],"?*")) -> ABCR | Q25: =IF(ISNUMBER(SEARCH(StorageBox,StorageTable6[Storage])),1,0) -> 0 | R25: =IF(StorageTable6[Colu1] = 1, SUM($Q$2:Q25),0) -> 0 | S25: =IFERROR(INDEX(StorageTable6[Storage],MATCH(ROWS($S$2:S25),StorageTable6[Colu2],0)),"") ->  | U25: =OFFSET($S$2,,,COUNTIF(StorageTable6[Colu3],"?*")) ->  | AF25: mg (G) | AG25: Milligrams (Gas) | AH25: =IF(ISNUMBER(SEARCH(UnitBox,Units57[Chemical Unit])),1,0) -> 1 | AI25: =IF(Units57[Col1] = 1, SUM($AH$2:AH25),0) -> 24 | AJ25: =IFERROR(INDEX(Units57[Chemical Unit],MATCH(ROWS($AJ$2:AJ25),Units57[Col2],0)),"") -> mg (G) | AL25: =OFFSET($AJ$2,,,COUNTIF(Units57[Col3],"?*")) -> mg (G)
A26: AbDSerotec | B26: AbDSerotec | C26: =IF(ISNUMBER(SEARCH(DropBox,Jaco[Vendor Name])),1,0) -> 1 | D26: =IF(Jaco[Column2] = 1, SUM($C$2:C26),0) -> 25 | E26: =IFERROR(INDEX(Jaco[Vendor Name], MATCH(ROWS($E$2:E26),Jaco[Column3],0) ),"") -> AbDSerotec | G26: =OFFSET($E$2,,,COUNTIF(Jaco[Column4],"?*")) -> AbDSerotec | Q26: =IF(ISNUMBER(SEARCH(StorageBox,StorageTable6[Storage])),1,0) -> 0 | R26: =IF(StorageTable6[Colu1] = 1, SUM($Q$2:Q26),0) -> 0 | S26: =IFERROR(INDEX(StorageTable6[Storage],MATCH(ROWS($S$2:S26),StorageTable6[Colu2],0)),"") ->  | U26: =OFFSET($S$2,,,COUNTIF(StorageTable6[Colu3],"?*")) ->  | AF26: mg (L) | AG26: Milligrams (Liquid) | AH26: =IF(ISNUMBER(SEARCH(UnitBox,Units57[Chemical Unit])),1,0) -> 1 | AI26: =IF(Units57[Col1] = 1, SUM($AH$2:AH26),0) -> 25 | AJ26: =IFERROR(INDEX(Units57[Chemical Unit],MATCH(ROWS($AJ$2:AJ26),Units57[Col2],0)),"") -> mg (L) | AL26: =OFFSET($AJ$2,,,COUNTIF(Units57[Col3],"?*")) -> mg (L)
A27: ABMOLE | B27: ABMole Bioscience | C27: =IF(ISNUMBER(SEARCH(DropBox,Jaco[Vendor Name])),1,0) -> 1 | D27: =IF(Jaco[Column2] = 1, SUM($C$2:C27),0) -> 26 | E27: =IFERROR(INDEX(Jaco[Vendor Name], MATCH(ROWS($E$2:E27),Jaco[Column3],0) ),"") -> ABMole Bioscience | G27: =OFFSET($E$2,,,COUNTIF(Jaco[Column4],"?*")) -> ABMole Bioscience | Q27: =IF(ISNUMBER(SEARCH(StorageBox,StorageTable6[Storage])),1,0) -> 0 | R27: =IF(StorageTable6[Colu1] = 1, SUM($Q$2:Q27),0) -> 0 | S27: =IFERROR(INDEX(StorageTable6[Storage],MATCH(ROWS($S$2:S27),StorageTable6[Colu2],0)),"") ->  | U27: =OFFSET($S$2,,,COUNTIF(StorageTable6[Colu3],"?*")) ->  | AF27: mg | AG27: Milligrams (Solid) | AH27: =IF(ISNUMBER(SEARCH(UnitBox,Units57[Chemical Unit])),1,0) -> 1 | AI27: =IF(Units57[Col1] = 1, SUM($AH$2:AH27),0) -> 26 | AJ27: =IFERROR(INDEX(Units57[Chemical Unit],MATCH(ROWS($AJ$2:AJ27),Units57[Col2],0)),"") -> mg | AL27: =OFFSET($AJ$2,,,COUNTIF(Units57[Col3],"?*")) -> mg
A28: ABNOVA | B28: ABNOVA | C28: =IF(ISNUMBER(SEARCH(DropBox,Jaco[Vendor Name])),1,0) -> 1 | D28: =IF(Jaco[Column2] = 1, SUM($C$2:C28),0) -> 27 | E28: =IFERROR(INDEX(Jaco[Vendor Name], MATCH(ROWS($E$2:E28),Jaco[Column3],0) ),"") -> ABNOVA | G28: =OFFSET($E$2,,,COUNTIF(Jaco[Column4],"?*")) -> ABNOVA | Q28: =IF(ISNUMBER(SEARCH(StorageBox,StorageTable6[Storage])),1,0) -> 0 | R28: =IF(StorageTable6[Colu1] = 1, SUM($Q$2:Q28),0) -> 0 | S28: =IFERROR(INDEX(StorageTable6[Storage],MATCH(ROWS($S$2:S28),StorageTable6[Colu2],0)),"") ->  | U28: =OFFSET($S$2,,,COUNTIF(StorageTable6[Colu3],"?*")) ->  | AF28: mL (S) | AG28: Milliliters (Solid) | AH28: =IF(ISNUMBER(SEARCH(UnitBox,Units57[Chemical Unit])),1,0) -> 1 | AI28: =IF(Units57[Col1] = 1, SUM($AH$2:AH28),0) -> 27 | AJ28: =IFERROR(INDEX(Units57[Chemical Unit],MATCH(ROWS($AJ$2:AJ28),Units57[Col2],0)),"") -> mL (S) | AL28: =OFFSET($AJ$2,,,COUNTIF(Units57[Col3],"?*")) -> mL (S)
A29: ACCCORP | B29: ACC Corporation | C29: =IF(ISNUMBER(SEARCH(DropBox,Jaco[Vendor Name])),1,0) -> 1 | D29: =IF(Jaco[Column2] = 1, SUM($C$2:C29),0) -> 28 | E29: =IFERROR(INDEX(Jaco[Vendor Name], MATCH(ROWS($E$2:E29),Jaco[Column3],0) ),"") -> ACC Corporation | G29: =OFFSET($E$2,,,COUNTIF(Jaco[Column4],"?*")) -> ACC Corporation | Q29: =IF(ISNUMBER(SEARCH(StorageBox,StorageTable6[Storage])),1,0) -> 0 | R29: =IF(StorageTable6[Colu1] = 1, SUM($Q$2:Q29),0) -> 0 | S29: =IFERROR(INDEX(StorageTable6[Storage],MATCH(ROWS($S$2:S29),StorageTable6[Colu2],0)),"") ->  | U29: =OFFSET($S$2,,,COUNTIF(StorageTable6[Colu3],"?*")) ->  | AF29: mL (G) | AG29: Milliliters (Gas) | AH29: =IF(ISNUMBER(SEARCH(UnitBox,Units57[Chemical Unit])),1,0) -> 1 | AI29: =IF(Units57[Col1] = 1, SUM($AH$2:AH29),0) -> 28 | AJ29: =IFERROR(INDEX(Units57[Chemical Unit],MATCH(ROWS($AJ$2:AJ29),Units57[Col2],0)),"") -> mL (G) | AL29: =OFFSET($AJ$2,,,COUNTIF(Units57[Col3],"?*")) -> mL (G)
A30: ACCELA | B30: Accela ChemBio Inc. | C30: =IF(ISNUMBER(SEARCH(DropBox,Jaco[Vendor Name])),1,0) -> 1 | D30: =IF(Jaco[Column2] = 1, SUM($C$2:C30),0) -> 29 | E30: =IFERROR(INDEX(Jaco[Vendor Name], MATCH(ROWS($E$2:E30),Jaco[Column3],0) ),"") -> Accela ChemBio Inc. | G30: =OFFSET($E$2,,,COUNTIF(Jaco[Column4],"?*")) -> Accela ChemBio Inc. | Q30: =IF(ISNUMBER(SEARCH(StorageBox,StorageTable6[Storage])),1,0) -> 0 | R30: =IF(StorageTable6[Colu1] = 1, SUM($Q$2:Q30),0) -> 0 | S30: =IFERROR(INDEX(StorageTable6[Storage],MATCH(ROWS($S$2:S30),StorageTable6[Colu2],0)),"") ->  | U30: =OFFSET($S$2,,,COUNTIF(StorageTable6[Colu3],"?*")) ->  | AF30: mL | AG30: Milliliters (Liquid) | AH30: =IF(ISNUMBER(SEARCH(UnitBox,Units57[Chemical Unit])),1,0) -> 1 | AI30: =IF(Units57[Col1] = 1, SUM($AH$2:AH30),0) -> 29 | AJ30: =IFERROR(INDEX(Units57[Chemical Unit],MATCH(ROWS($AJ$2:AJ30),Units57[Col2],0)),"") -> mL | AL30: =OFFSET($AJ$2,,,COUNTIF(Units57[Col3],"?*")) -> mL
A31: ACCELACH | B31: Accela ChemBio Inc. (ASD) | C31: =IF(ISNUMBER(SEARCH(DropBox,Jaco[Vendor Name])),1,0) -> 1 | D31: =IF(Jaco[Column2] = 1, SUM($C$2:C31),0) -> 30 | E31: =IFERROR(INDEX(Jaco[Vendor Name], MATCH(ROWS($E$2:E31),Jaco[Column3],0) ),"") -> Accela ChemBio Inc. (ASD) | G31: =OFFSET($E$2,,,COUNTIF(Jaco[Column4],"?*")) -> Accela ChemBio Inc. (ASD) | Q31: =IF(ISNUMBER(SEARCH(StorageBox,StorageTable6[Storage])),1,0) -> 0 | R31: =IF(StorageTable6[Colu1] = 1, SUM($Q$2:Q31),0) -> 0 | S31: =IFERROR(INDEX(StorageTable6[Storage],MATCH(ROWS($S$2:S31),StorageTable6[Colu2],0)),"") ->  | U31: =OFFSET($S$2,,,COUNTIF(StorageTable6[Colu3],"?*")) ->  | AF31: NG (S) | AG31: Nanograms | AH31: =IF(ISNUMBER(SEARCH(UnitBox,Units57[Chemical Unit])),1,0) -> 1 | AI31: =IF(Units57[Col1] = 1, SUM($AH$2:AH31),0) -> 30 | AJ31: =IFERROR(INDEX(Units57[Chemical Unit],MATCH(ROWS($AJ$2:AJ31),Units57[Col2],0)),"") -> NG (S) | AL31: =OFFSET($AJ$2,,,COUNTIF(Units57[Col3],"?*")) -> NG (S)
A32: ACCURI | B32: Accuri | C32: =IF(ISNUMBER(SEARCH(DropBox,Jaco[Vendor Name])),1,0) -> 1 | D32: =IF(Jaco[Column2] = 1, SUM($C$2:C32),0) -> 31 | E32: =IFERROR(INDEX(Jaco[Vendor Name], MATCH(ROWS($E$2:E32),Jaco[Column3],0) ),"") -> Accuri | G32: =OFFSET($E$2,,,COUNTIF(Jaco[Column4],"?*")) -> Accuri | Q32: =IF(ISNUMBER(SEARCH(StorageBox,StorageTable6[Storage])),1,0) -> 0 | R32: =IF(StorageTable6[Colu1] = 1, SUM($Q$2:Q32),0) -> 0 | S32: =IFERROR(INDEX(StorageTable6[Storage],MATCH(ROWS($S$2:S32),StorageTable6[Colu2],0)),"") ->  | U32: =OFFSET($S$2,,,COUNTIF(StorageTable6[Colu3],"?*")) ->  | AF32: Ounces (L) | AG32: Ounces (Liquid) | AH32: =IF(ISNUMBER(SEARCH(UnitBox,Units57[Chemical Unit])),1,0) -> 1 | AI32: =IF(Units57[Col1] = 1, SUM($AH$2:AH32),0) -> 31 | AJ32: =IFERROR(INDEX(Units57[Chemical Unit],MATCH(ROWS($AJ$2:AJ32),Units57[Col2],0)),"") -> Ounces (L) | AL32: =OFFSET($AJ$2,,,COUNTIF(Units57[Col3],"?*")) -> Ounces (L)
A33: ACCUSTD | B33: AccuStandard | C33: =IF(ISNUMBER(SEARCH(DropBox,Jaco[Vendor Name])),1,0) -> 1 | D33: =IF(Jaco[Column2] = 1, SUM($C$2:C33),0) -> 32 | E33: =IFERROR(INDEX(Jaco[Vendor Name], MATCH(ROWS($E$2:E33),Jaco[Column3],0) ),"") -> AccuStandard | G33: =OFFSET($E$2,,,COUNTIF(Jaco[Column4],"?*")) -> AccuStandard | Q33: =IF(ISNUMBER(SEARCH(StorageBox,StorageTable6[Storage])),1,0) -> 0 | R33: =IF(StorageTable6[Colu1] = 1, SUM($Q$2:Q33),0) -> 0 | S33: =IFERROR(INDEX(StorageTable6[Storage],MATCH(ROWS($S$2:S33),StorageTable6[Colu2],0)),"") ->  | U33: =OFFSET($S$2,,,COUNTIF(StorageTable6[Colu3],"?*")) ->  | AF33: Ounces (G) | AG33: Ounces (Gas) | AH33: =IF(ISNUMBER(SEARCH(UnitBox,Units57[Chemical Unit])),1,0) -> 1 | AI33: =IF(Units57[Col1] = 1, SUM($AH$2:AH33),0) -> 32 | AJ33: =IFERROR(INDEX(Units57[Chemical Unit],MATCH(ROWS($AJ$2:AJ33),Units57[Col2],0)),"") -> Ounces (G) | AL33: =OFFSET($AJ$2,,,COUNTIF(Units57[Col3],"?*")) -> Ounces (G)
A34: ACE | B34: ACE HARDWARE | C34: =IF(ISNUMBER(SEARCH(DropBox,Jaco[Vendor Name])),1,0) -> 1 | D34: =IF(Jaco[Column2] = 1, SUM($C$2:C34),0) -> 33 | E34: =IFERROR(INDEX(Jaco[Vendor Name], MATCH(ROWS($E$2:E34),Jaco[Column3],0) ),"") -> ACE HARDWARE | G34: =OFFSET($E$2,,,COUNTIF(Jaco[Column4],"?*")) -> ACE HARDWARE | Q34: =IF(ISNUMBER(SEARCH(StorageBox,StorageTable6[Storage])),1,0) -> 0 | R34: =IF(StorageTable6[Colu1] = 1, SUM($Q$2:Q34),0) -> 0 | S34: =IFERROR(INDEX(StorageTable6[Storage],MATCH(ROWS($S$2:S34),StorageTable6[Colu2],0)),"") ->  | U34: =OFFSET($S$2,,,COUNTIF(StorageTable6[Colu3],"?*")) ->  | AF34: Ounces | AG34: Ounces (Solid) | AH34: =IF(ISNUMBER(SEARCH(UnitBox,Units57[Chemical Unit])),1,0) -> 1 | AI34: =IF(Units57[Col1] = 1, SUM($AH$2:AH34),0) -> 33 | AJ34: =IFERROR(INDEX(Units57[Chemical Unit],MATCH(ROWS($AJ$2:AJ34),Units57[Col2],0)),"") -> Ounces | AL34: =OFFSET($AJ$2,,,COUNTIF(Units57[Col3],"?*")) -> Ounces
A35: ACROS | B35: Acros Organics N.V. | C35: =IF(ISNUMBER(SEARCH(DropBox,Jaco[Vendor Name])),1,0) -> 1 | D35: =IF(Jaco[Column2] = 1, SUM($C$2:C35),0) -> 34 | E35: =IFERROR(INDEX(Jaco[Vendor Name], MATCH(ROWS($E$2:E35),Jaco[Column3],0) ),"") -> Acros Organics N.V. | G35: =OFFSET($E$2,,,COUNTIF(Jaco[Column4],"?*")) -> Acros Organics N.V. | Q35: =IF(ISNUMBER(SEARCH(StorageBox,StorageTable6[Storage])),1,0) -> 0 | R35: =IF(StorageTable6[Colu1] = 1, SUM($Q$2:Q35),0) -> 0 | S35: =IFERROR(INDEX(StorageTable6[Storage],MATCH(ROWS($S$2:S35),StorageTable6[Colu2],0)),"") ->  | U35: =OFFSET($S$2,,,COUNTIF(StorageTable6[Colu3],"?*")) ->  | AF35: PINT (S) | AG35: Pints (Solid) | AH35: =IF(ISNUMBER(SEARCH(UnitBox,Units57[Chemical Unit])),1,0) -> 1 | AI35: =IF(Units57[Col1] = 1, SUM($AH$2:AH35),0) -> 34 | AJ35: =IFERROR(INDEX(Units57[Chemical Unit],MATCH(ROWS($AJ$2:AJ35),Units57[Col2],0)),"") -> PINT (S) | AL35: =OFFSET($AJ$2,,,COUNTIF(Units57[Col3],"?*")) -> PINT (S)
A36: ACROSORG | B36: Acros Organics | C36: =IF(ISNUMBER(SEARCH(DropBox,Jaco[Vendor Name])),1,0) -> 1 | D36: =IF(Jaco[Column2] = 1, SUM($C$2:C36),0) -> 35 | E36: =IFERROR(INDEX(Jaco[Vendor Name], MATCH(ROWS($E$2:E36),Jaco[Column3],0) ),"") -> Acros Organics | G36: =OFFSET($E$2,,,COUNTIF(Jaco[Column4],"?*")) -> Acros Organics | Q36: =IF(ISNUMBER(SEARCH(StorageBox,StorageTable6[Storage])),1,0) -> 0 | R36: =IF(StorageTable6[Colu1] = 1, SUM($Q$2:Q36),0) -> 0 | S36: =IFERROR(INDEX(StorageTable6[Storage],MATCH(ROWS($S$2:S36),StorageTable6[Colu2],0)),"") ->  | U36: =OFFSET($S$2,,,COUNTIF(StorageTable6[Colu3],"?*")) ->  | AF36: PINT | AG36: Pints (Liquid) | AH36: =IF(ISNUMBER(SEARCH(UnitBox,Units57[Chemical Unit])),1,0) -> 1 | AI36: =IF(Units57[Col1] = 1, SUM($AH$2:AH36),0) -> 35 | AJ36: =IFERROR(INDEX(Units57[Chemical Unit],MATCH(ROWS($AJ$2:AJ36),Units57[Col2],0)),"") -> PINT | AL36: =OFFSET($AJ$2,,,COUNTIF(Units57[Col3],"?*")) -> PINT
A37: ACSSCI | B37: ACS Scientific Inc. | C37: =IF(ISNUMBER(SEARCH(DropBox,Jaco[Vendor Name])),1,0) -> 1 | D37: =IF(Jaco[Column2] = 1, SUM($C$2:C37),0) -> 36 | E37: =IFERROR(INDEX(Jaco[Vendor Name], MATCH(ROWS($E$2:E37),Jaco[Column3],0) ),"") -> ACS Scientific Inc. | G37: =OFFSET($E$2,,,COUNTIF(Jaco[Column4],"?*")) -> ACS Scientific Inc. | Q37: =IF(ISNUMBER(SEARCH(StorageBox,StorageTable6[Storage])),1,0) -> 0 | R37: =IF(StorageTable6[Colu1] = 1, SUM($Q$2:Q37),0) -> 0 | S37: =IFERROR(INDEX(StorageTable6[Storage],MATCH(ROWS($S$2:S37),StorageTable6[Colu2],0)),"") ->  | U37: =OFFSET($S$2,,,COUNTIF(StorageTable6[Colu3],"?*")) ->  | AF37: PINT (G) | AG37: Pints (Gas) | AH37: =IF(ISNUMBER(SEARCH(UnitBox,Units57[Chemical Unit])),1,0) -> 1 | AI37: =IF(Units57[Col1] = 1, SUM($AH$2:AH37),0) -> 36 | AJ37: =IFERROR(INDEX(Units57[Chemical Unit],MATCH(ROWS($AJ$2:AJ37),Units57[Col2],0)),"") -> PINT (G) | AL37: =OFFSET($AJ$2,,,COUNTIF(Units57[Col3],"?*")) -> PINT (G)
A38: ADAR | B38: Adar Biotech | C38: =IF(ISNUMBER(SEARCH(DropBox,Jaco[Vendor Name])),1,0) -> 1 | D38: =IF(Jaco[Column2] = 1, SUM($C$2:C38),0) -> 37 | E38: =IFERROR(INDEX(Jaco[Vendor Name], MATCH(ROWS($E$2:E38),Jaco[Column3],0) ),"") -> Adar Biotech | G38: =OFFSET($E$2,,,COUNTIF(Jaco[Column4],"?*")) -> Adar Biotech | Q38: =IF(ISNUMBER(SEARCH(StorageBox,StorageTable6[Storage])),1,0) -> 0 | R38: =IF(StorageTable6[Colu1] = 1, SUM($Q$2:Q38),0) -> 0 | S38: =IFERROR(INDEX(StorageTable6[Storage],MATCH(ROWS($S$2:S38),StorageTable6[Colu2],0)),"") ->  | U38: =OFFSET($S$2,,,COUNTIF(StorageTable6[Colu3],"?*")) ->  | AF38: Quart | AG38: Quarts | AH38: =IF(ISNUMBER(SEARCH(UnitBox,Units57[Chemical Unit])),1,0) -> 1 | AI38: =IF(Units57[Col1] = 1, SUM($AH$2:AH38),0) -> 37 | AJ38: =IFERROR(INDEX(Units57[Chemical Unit],MATCH(ROWS($AJ$2:AJ38),Units57[Col2],0)),"") -> Quart | AL38: =OFFSET($AJ$2,,,COUNTIF(Units57[Col3],"?*")) -> Quart
A39: ADHESIVES | B39: ADHESIVES TECHNOLOGY CORP. | C39: =IF(ISNUMBER(SEARCH(DropBox,Jaco[Vendor Name])),1,0) -> 1 | D39: =IF(Jaco[Column2] = 1, SUM($C$2:C39),0) -> 38 | E39: =IFERROR(INDEX(Jaco[Vendor Name], MATCH(ROWS($E$2:E39),Jaco[Column3],0) ),"") -> ADHESIVES TECHNOLOGY CORP. | G39: =OFFSET($E$2,,,COUNTIF(Jaco[Column4],"?*")) -> ADHESIVES TECHNOLOGY CORP. | Q39: =IF(ISNUMBER(SEARCH(StorageBox,StorageTable6[Storage])),1,0) -> 0 | R39: =IF(StorageTable6[Colu1] = 1, SUM($Q$2:Q39),0) -> 0 | S39: =IFERROR(INDEX(StorageTable6[Storage],MATCH(ROWS($S$2:S39),StorageTable6[Colu2],0)),"") ->  | U39: =OFFSET($S$2,,,COUNTIF(StorageTable6[Colu3],"?*")) ->  | AF39: U | AG39: Units | AH39: =IF(ISNUMBER(SEARCH(UnitBox,Units57[Chemical Unit])),1,0) -> 1 | AI39: =IF(Units57[Col1] = 1, SUM($AH$2:AH39),0) -> 38 | AJ39: =IFERROR(INDEX(Units57[Chemical Unit],MATCH(ROWS($AJ$2:AJ39),Units57[Col2],0)),"") -> U | AL39: =OFFSET($AJ$2,,,COUNTIF(Units57[Col3],"?*")) -> U
A40: ADIRONDAK | B40: Adirondak Mts | C40: =IF(ISNUMBER(SEARCH(DropBox,Jaco[Vendor Name])),1,0) -> 1 | D40: =IF(Jaco[Column2] = 1, SUM($C$2:C40),0) -> 39 | E40: =IFERROR(INDEX(Jaco[Vendor Name], MATCH(ROWS($E$2:E40),Jaco[Column3],0) ),"") -> Adirondak Mts | G40: =OFFSET($E$2,,,COUNTIF(Jaco[Column4],"?*")) -> Adirondak Mts | Q40: =IF(ISNUMBER(SEARCH(StorageBox,StorageTable6[Storage])),1,0) -> 0 | R40: =IF(StorageTable6[Colu1] = 1, SUM($Q$2:Q40),0) -> 0 | S40: =IFERROR(INDEX(StorageTable6[Storage],MATCH(ROWS($S$2:S40),StorageTable6[Colu2],0)),"") ->  | U40: =OFFSET($S$2,,,COUNTIF(StorageTable6[Colu3],"?*")) ->  | AF40: uG (L) | AG40: Micrograms (Liquid) | AH40: =IF(ISNUMBER(SEARCH(UnitBox,Units57[Chemical Unit])),1,0) -> 1 | AI40: =IF(Units57[Col1] = 1, SUM($AH$2:AH40),0) -> 39 | AJ40: =IFERROR(INDEX(Units57[Chemical Unit],MATCH(ROWS($AJ$2:AJ40),Units57[Col2],0)),"") -> uG (L) | AL40: =OFFSET($AJ$2,,,COUNTIF(Units57[Col3],"?*")) -> uG (L)
A41: ADOOQ | B41: AdooQ | C41: =IF(ISNUMBER(SEARCH(DropBox,Jaco[Vendor Name])),1,0) -> 1 | D41: =IF(Jaco[Column2] = 1, SUM($C$2:C41),0) -> 40 | E41: =IFERROR(INDEX(Jaco[Vendor Name], MATCH(ROWS($E$2:E41),Jaco[Column3],0) ),"") -> AdooQ | G41: =OFFSET($E$2,,,COUNTIF(Jaco[Column4],"?*")) -> AdooQ | Q41: =IF(ISNUMBER(SEARCH(StorageBox,StorageTable6[Storage])),1,0) -> 0 | R41: =IF(StorageTable6[Colu1] = 1, SUM($Q$2:Q41),0) -> 0 | S41: =IFERROR(INDEX(StorageTable6[Storage],MATCH(ROWS($S$2:S41),StorageTable6[Colu2],0)),"") ->  | U41: =OFFSET($S$2,,,COUNTIF(StorageTable6[Colu3],"?*")) ->  | AF41: uG | AG41: Micrograms (Solid) | AH41: =IF(ISNUMBER(SEARCH(UnitBox,Units57[Chemical Unit])),1,0) -> 1 | AI41: =IF(Units57[Col1] = 1, SUM($AH$2:AH41),0) -> 40 | AJ41: =IFERROR(INDEX(Units57[Chemical Unit],MATCH(ROWS($AJ$2:AJ41),Units57[Col2],0)),"") -> uG | AL41: =OFFSET($AJ$2,,,COUNTIF(Units57[Col3],"?*")) -> uG
A42: ADS | B42: American Dental Supply | C42: =IF(ISNUMBER(SEARCH(DropBox,Jaco[Vendor Name])),1,0) -> 1 | D42: =IF(Jaco[Column2] = 1, SUM($C$2:C42),0) -> 41 | E42: =IFERROR(INDEX(Jaco[Vendor Name], MATCH(ROWS($E$2:E42),Jaco[Column3],0) ),"") -> American Dental Supply | G42: =OFFSET($E$2,,,COUNTIF(Jaco[Column4],"?*")) -> American Dental Supply | Q42: =IF(ISNUMBER(SEARCH(StorageBox,StorageTable6[Storage])),1,0) -> 0 | R42: =IF(StorageTable6[Colu1] = 1, SUM($Q$2:Q42),0) -> 0 | S42: =IFERROR(INDEX(StorageTable6[Storage],MATCH(ROWS($S$2:S42),StorageTable6[Colu2],0)),"") ->  | U42: =OFFSET($S$2,,,COUNTIF(StorageTable6[Colu3],"?*")) ->  | AF42: µL | AG42: Microliters (Liquid) | AH42: =IF(ISNUMBER(SEARCH(UnitBox,Units57[Chemical Unit])),1,0) -> 1 | AI42: =IF(Units57[Col1] = 1, SUM($AH$2:AH42),0) -> 41 | AJ42: =IFERROR(INDEX(Units57[Chemical Unit],MATCH(ROWS($AJ$2:AJ42),Units57[Col2],0)),"") -> µL | AL42: =OFFSET($AJ$2,,,COUNTIF(Units57[Col3],"?*")) -> µL
A43: ADSMART | B43: Abmart | C43: =IF(ISNUMBER(SEARCH(DropBox,Jaco[Vendor Name])),1,0) -> 1 | D43: =IF(Jaco[Column2] = 1, SUM($C$2:C43),0) -> 42 | E43: =IFERROR(INDEX(Jaco[Vendor Name], MATCH(ROWS($E$2:E43),Jaco[Column3],0) ),"") -> Abmart | G43: =OFFSET($E$2,,,COUNTIF(Jaco[Column4],"?*")) -> Abmart | Q43: =IF(ISNUMBER(SEARCH(StorageBox,StorageTable6[Storage])),1,0) -> 0 | R43: =IF(StorageTable6[Colu1] = 1, SUM($Q$2:Q43),0) -> 0 | S43: =IFERROR(INDEX(StorageTable6[Storage],MATCH(ROWS($S$2:S43),StorageTable6[Colu2],0)),"") ->  | U43: =OFFSET($S$2,,,COUNTIF(StorageTable6[Colu3],"?*")) ->  | AF43: µL (S) | AG43: Microliters (Solid) | AH43: =IF(ISNUMBER(SEARCH(UnitBox,Units57[Chemical Unit])),1,0) -> 1 | AI43: =IF(Units57[Col1] = 1, SUM($AH$2:AH43),0) -> 42 | AJ43: =IFERROR(INDEX(Units57[Chemical Unit],MATCH(ROWS($AJ$2:AJ43),Units57[Col2],0)),"") -> µL (S) | AL43: =OFFSET($AJ$2,,,COUNTIF(Units57[Col3],"?*")) -> µL (S)
A44: ADVCHTECH | B44: Advanced ChemTech | C44: =IF(ISNUMBER(SEARCH(DropBox,Jaco[Vendor Name])),1,0) -> 1 | D44: =IF(Jaco[Column2] = 1, SUM($C$2:C44),0) -> 43 | E44: =IFERROR(INDEX(Jaco[Vendor Name], MATCH(ROWS($E$2:E44),Jaco[Column3],0) ),"") -> Advanced ChemTech | G44: =OFFSET($E$2,,,COUNTIF(Jaco[Column4],"?*")) -> Advanced ChemTech | Q44: =IF(ISNUMBER(SEARCH(StorageBox,StorageTable6[Storage])),1,0) -> 0 | R44: =IF(StorageTable6[Colu1] = 1, SUM($Q$2:Q44),0) -> 0 | S44: =IFERROR(INDEX(StorageTable6[Storage],MATCH(ROWS($S$2:S44),StorageTable6[Colu2],0)),"") ->  | U44: =OFFSET($S$2,,,COUNTIF(StorageTable6[Colu3],"?*")) ->  | AF44: µL (G) | AG44: Microliters (Gas) | AH44: =IF(ISNUMBER(SEARCH(UnitBox,Units57[Chemical Unit])),1,0) -> 1 | AI44: =IF(Units57[Col1] = 1, SUM($AH$2:AH44),0) -> 43 | AJ44: =IFERROR(INDEX(Units57[Chemical Unit],MATCH(ROWS($AJ$2:AJ44),Units57[Col2],0)),"") -> µL (G) | AL44: =OFFSET($AJ$2,,,COUNTIF(Units57[Col3],"?*")) -> µL (G)
A45: ADVPOLY | B45: Advanced Polymer Materials Inc | C45: =IF(ISNUMBER(SEARCH(DropBox,Jaco[Vendor Name])),1,0) -> 1 | D45: =IF(Jaco[Column2] = 1, SUM($C$2:C45),0) -> 44 | E45: =IFERROR(INDEX(Jaco[Vendor Name], MATCH(ROWS($E$2:E45),Jaco[Column3],0) ),"") -> Advanced Polymer Materials Inc | G45: =OFFSET($E$2,,,COUNTIF(Jaco[Column4],"?*")) -> Advanced Polymer Materials Inc | Q45: =IF(ISNUMBER(SEARCH(StorageBox,StorageTable6[Storage])),1,0) -> 0 | R45: =IF(StorageTable6[Colu1] = 1, SUM($Q$2:Q45),0) -> 0 | S45: =IFERROR(INDEX(StorageTable6[Storage],MATCH(ROWS($S$2:S45),StorageTable6[Colu2],0)),"") ->  | U45: =OFFSET($S$2,,,COUNTIF(StorageTable6[Colu3],"?*")) ->  | AF45: µ (L) | AH45: =IF(ISNUMBER(SEARCH(UnitBox,Units57[Chemical Unit])),1,0) -> 1 | AI45: =IF(Units57[Col1] = 1, SUM($AH$2:AH45),0) -> 44 | AJ45: =IFERROR(INDEX(Units57[Chemical Unit],MATCH(ROWS($AJ$2:AJ45),Units57[Col2],0)),"") -> µ (L) | AL45: =OFFSET($AJ$2,,,COUNTIF(Units57[Col3],"?*")) -> µ (L)
A46: ADVSYNTH | B46: Advanced Synthesis Technologies | C46: =IF(ISNUMBER(SEARCH(DropBox,Jaco[Vendor Name])),1,0) -> 1 | D46: =IF(Jaco[Column2] = 1, SUM($C$2:C46),0) -> 45 | E46: =IFERROR(INDEX(Jaco[Vendor Name], MATCH(ROWS($E$2:E46),Jaco[Column3],0) ),"") -> Advanced Synthesis Technologies | G46: =OFFSET($E$2,,,COUNTIF(Jaco[Column4],"?*")) -> Advanced Synthesis Technologies | Q46: =IF(ISNUMBER(SEARCH(StorageBox,StorageTable6[Storage])),1,0) -> 0 | R46: =IF(StorageTable6[Colu1] = 1, SUM($Q$2:Q46),0) -> 0 | S46: =IFERROR(INDEX(StorageTable6[Storage],MATCH(ROWS($S$2:S46),StorageTable6[Colu2],0)),"") ->  | U46: =OFFSET($S$2,,,COUNTIF(StorageTable6[Colu3],"?*")) -> 
A47: ADVTECH | B47: Advanced Technology & Industrial Co | C47: =IF(ISNUMBER(SEARCH(DropBox,Jaco[Vendor Name])),1,0) -> 1 | D47: =IF(Jaco[Column2] = 1, SUM($C$2:C47),0) -> 46 | E47: =IFERROR(INDEX(Jaco[Vendor Name], MATCH(ROWS($E$2:E47),Jaco[Column3],0) ),"") -> Advanced Technology & Industrial Co | G47: =OFFSET($E$2,,,COUNTIF(Jaco[Column4],"?*")) -> Advanced Technology & Industrial Co | Q47: =IF(ISNUMBER(SEARCH(StorageBox,StorageTable6[Storage])),1,0) -> 0 | R47: =IF(StorageTable6[Colu1] = 1, SUM($Q$2:Q47),0) -> 0 | S47: =IFERROR(INDEX(StorageTable6[Storage],MATCH(ROWS($S$2:S47),StorageTable6[Colu2],0)),"") ->  | U47: =OFFSET($S$2,,,COUNTIF(StorageTable6[Colu3],"?*")) -> 
A48: AEGIS | B48: Aegis Environment | C48: =IF(ISNUMBER(SEARCH(DropBox,Jaco[Vendor Name])),1,0) -> 1 | D48: =IF(Jaco[Column2] = 1, SUM($C$2:C48),0) -> 47 | E48: =IFERROR(INDEX(Jaco[Vendor Name], MATCH(ROWS($E$2:E48),Jaco[Column3],0) ),"") -> Aegis Environment | G48: =OFFSET($E$2,,,COUNTIF(Jaco[Column4],"?*")) -> Aegis Environment | Q48: =IF(ISNUMBER(SEARCH(StorageBox,StorageTable6[Storage])),1,0) -> 0 | R48: =IF(StorageTable6[Colu1] = 1, SUM($Q$2:Q48),0) -> 0 | S48: =IFERROR(INDEX(StorageTable6[Storage],MATCH(ROWS($S$2:S48),StorageTable6[Colu2],0)),"") ->  | U48: =OFFSET($S$2,,,COUNTIF(StorageTable6[Colu3],"?*")) -> 
A49: AEROPRES | B49: AEROPRES CORPORATION | C49: =IF(ISNUMBER(SEARCH(DropBox,Jaco[Vendor Name])),1,0) -> 1 | D49: =IF(Jaco[Column2] = 1, SUM($C$2:C49),0) -> 48 | E49: =IFERROR(INDEX(Jaco[Vendor Name], MATCH(ROWS($E$2:E49),Jaco[Column3],0) ),"") -> AEROPRES CORPORATION | G49: =OFFSET($E$2,,,COUNTIF(Jaco[Column4],"?*")) -> AEROPRES CORPORATION | Q49: =IF(ISNUMBER(SEARCH(StorageBox,StorageTable6[Storage])),1,0) -> 0 | R49: =IF(StorageTable6[Colu1] = 1, SUM($Q$2:Q49),0) -> 0 | S49: =IFERROR(INDEX(StorageTable6[Storage],MATCH(ROWS($S$2:S49),StorageTable6[Colu2],0)),"") ->  | U49: =OFFSET($S$2,,,COUNTIF(StorageTable6[Colu3],"?*")) -> 
A50: AERVO | B50: AERVO INDUSTRIES | C50: =IF(ISNUMBER(SEARCH(DropBox,Jaco[Vendor Name])),1,0) -> 1 | D50: =IF(Jaco[Column2] = 1, SUM($C$2:C50),0) -> 49 | E50: =IFERROR(INDEX(Jaco[Vendor Name], MATCH(ROWS($E$2:E50),Jaco[Column3],0) ),"") -> AERVO INDUSTRIES | G50: =OFFSET($E$2,,,COUNTIF(Jaco[Column4],"?*")) -> AERVO INDUSTRIES | Q50: =IF(ISNUMBER(SEARCH(StorageBox,StorageTable6[Storage])),1,0) -> 0 | R50: =IF(StorageTable6[Colu1] = 1, SUM($Q$2:Q50),0) -> 0 | S50: =IFERROR(INDEX(StorageTable6[Storage],MATCH(ROWS($S$2:S50),StorageTable6[Colu2],0)),"") ->  | U50: =OFFSET($S$2,,,COUNTIF(StorageTable6[Colu3],"?*")) -> 
A51: AESCULAP | B51: AESCULAP AG | C51: =IF(ISNUMBER(SEARCH(DropBox,Jaco[Vendor Name])),1,0) -> 1 | D51: =IF(Jaco[Column2] = 1, SUM($C$2:C51),0) -> 50 | E51: =IFERROR(INDEX(Jaco[Vendor Name], MATCH(ROWS($E$2:E51),Jaco[Column3],0) ),"") -> AESCULAP AG | G51: =OFFSET($E$2,,,COUNTIF(Jaco[Column4],"?*")) -> AESCULAP AG | Q51: =IF(ISNUMBER(SEARCH(StorageBox,StorageTable6[Storage])),1,0) -> 0 | R51: =IF(StorageTable6[Colu1] = 1, SUM($Q$2:Q51),0) -> 0 | S51: =IFERROR(INDEX(StorageTable6[Storage],MATCH(ROWS($S$2:S51),StorageTable6[Colu2],0)),"") ->  | U51: =OFFSET($S$2,,,COUNTIF(StorageTable6[Colu3],"?*")) -> 
A52: AFFINITY | B52: Affinity Biologicals Inc | C52: =IF(ISNUMBER(SEARCH(DropBox,Jaco[Vendor Name])),1,0) -> 1 | D52: =IF(Jaco[Column2] = 1, SUM($C$2:C52),0) -> 51 | E52: =IFERROR(INDEX(Jaco[Vendor Name], MATCH(ROWS($E$2:E52),Jaco[Column3],0) ),"") -> Affinity Biologicals Inc | G52: =OFFSET($E$2,,,COUNTIF(Jaco[Column4],"?*")) -> Affinity Biologicals Inc | Q52: =IF(ISNUMBER(SEARCH(StorageBox,StorageTable6[Storage])),1,0) -> 0 | R52: =IF(StorageTable6[Colu1] = 1, SUM($Q$2:Q52),0) -> 0 | S52: =IFERROR(INDEX(StorageTable6[Storage],MATCH(ROWS($S$2:S52),StorageTable6[Colu2],0)),"") ->  | U52: =OFFSET($S$2,,,COUNTIF(StorageTable6[Colu3],"?*")) -> 
A53: AFFY | B53: AFFYMETRIX | C53: =IF(ISNUMBER(SEARCH(DropBox,Jaco[Vendor Name])),1,0) -> 1 | D53: =IF(Jaco[Column2] = 1, SUM($C$2:C53),0) -> 52 | E53: =IFERROR(INDEX(Jaco[Vendor Name], MATCH(ROWS($E$2:E53),Jaco[Column3],0) ),"") -> AFFYMETRIX | G53: =OFFSET($E$2,,,COUNTIF(Jaco[Column4],"?*")) -> AFFYMETRIX | Q53: =IF(ISNUMBER(SEARCH(StorageBox,StorageTable6[Storage])),1,0) -> 0 | R53: =IF(StorageTable6[Colu1] = 1, SUM($Q$2:Q53),0) -> 0 | S53: =IFERROR(INDEX(StorageTable6[Storage],MATCH(ROWS($S$2:S53),StorageTable6[Colu2],0)),"") ->  | U53: =OFFSET($S$2,,,COUNTIF(StorageTable6[Colu3],"?*")) -> 
A54: AFFYMET | B54: Affymetrix | C54: =IF(ISNUMBER(SEARCH(DropBox,Jaco[Vendor Name])),1,0) -> 1 | D54: =IF(Jaco[Column2] = 1, SUM($C$2:C54),0) -> 53 | E54: =IFERROR(INDEX(Jaco[Vendor Name], MATCH(ROWS($E$2:E54),Jaco[Column3],0) ),"") -> Affymetrix | G54: =OFFSET($E$2,,,COUNTIF(Jaco[Column4],"?*")) -> Affymetrix | Q54: =IF(ISNUMBER(SEARCH(StorageBox,StorageTable6[Storage])),1,0) -> 0 | R54: =IF(StorageTable6[Colu1] = 1, SUM($Q$2:Q54),0) -> 0 | S54: =IFERROR(INDEX(StorageTable6[Storage],MATCH(ROWS($S$2:S54),StorageTable6[Colu2],0)),"") ->  | U54: =OFFSET($S$2,,,COUNTIF(StorageTable6[Colu3],"?*")) -> 
A55: AFFYMETUSB | B55: Affymetrix/USB Products | C55: =IF(ISNUMBER(SEARCH(DropBox,Jaco[Vendor Name])),1,0) -> 1 | D55: =IF(Jaco[Column2] = 1, SUM($C$2:C55),0) -> 54 | E55: =IFERROR(INDEX(Jaco[Vendor Name], MATCH(ROWS($E$2:E55),Jaco[Column3],0) ),"") -> Affymetrix/USB Products | G55: =OFFSET($E$2,,,COUNTIF(Jaco[Column4],"?*")) -> Affymetrix/USB Products | Q55: =IF(ISNUMBER(SEARCH(StorageBox,StorageTable6[Storage])),1,0) -> 0 | R55: =IF(StorageTable6[Colu1] = 1, SUM($Q$2:Q55),0) -> 0 | S55: =IFERROR(INDEX(StorageTable6[Storage],MATCH(ROWS($S$2:S55),StorageTable6[Colu2],0)),"") ->  | U55: =OFFSET($S$2,,,COUNTIF(StorageTable6[Colu3],"?*")) -> 
A56: AFYMATRIX | B56: Afymatrix | C56: =IF(ISNUMBER(SEARCH(DropBox,Jaco[Vendor Name])),1,0) -> 1 | D56: =IF(Jaco[Column2] = 1, SUM($C$2:C56),0) -> 55 | E56: =IFERROR(INDEX(Jaco[Vendor Name], MATCH(ROWS($E$2:E56),Jaco[Column3],0) ),"") -> Afymatrix | G56: =OFFSET($E$2,,,COUNTIF(Jaco[Column4],"?*")) -> Afymatrix | Q56: =IF(ISNUMBER(SEARCH(StorageBox,StorageTable6[Storage])),1,0) -> 0 | R56: =IF(StorageTable6[Colu1] = 1, SUM($Q$2:Q56),0) -> 0 | S56: =IFERROR(INDEX(StorageTable6[Storage],MATCH(ROWS($S$2:S56),StorageTable6[Colu2],0)),"") ->  | U56: =OFFSET($S$2,,,COUNTIF(StorageTable6[Colu3],"?*")) -> 
A57: AG SCIEN | B57: AG SCIENTIFIC | C57: =IF(ISNUMBER(SEARCH(DropBox,Jaco[Vendor Name])),1,0) -> 1 | D57: =IF(Jaco[Column2] = 1, SUM($C$2:C57),0) -> 56 | E57: =IFERROR(INDEX(Jaco[Vendor Name], MATCH(ROWS($E$2:E57),Jaco[Column3],0) ),"") -> AG SCIENTIFIC | G57: =OFFSET($E$2,,,COUNTIF(Jaco[Column4],"?*")) -> AG SCIENTIFIC | Q57: =IF(ISNUMBER(SEARCH(StorageBox,StorageTable6[Storage])),1,0) -> 0 | R57: =IF(StorageTable6[Colu1] = 1, SUM($Q$2:Q57),0) -> 0 | S57: =IFERROR(INDEX(StorageTable6[Storage],MATCH(ROWS($S$2:S57),StorageTable6[Colu2],0)),"") ->  | U57: =OFFSET($S$2,,,COUNTIF(StorageTable6[Colu3],"?*")) -> 
A58: AGFA | B58: AGFA CORPORATION | C58: =IF(ISNUMBER(SEARCH(DropBox,Jaco[Vendor Name])),1,0) -> 1 | D58: =IF(Jaco[Column2] = 1, SUM($C$2:C58),0) -> 57 | E58: =IFERROR(INDEX(Jaco[Vendor Name], MATCH(ROWS($E$2:E58),Jaco[Column3],0) ),"") -> AGFA CORPORATION | G58: =OFFSET($E$2,,,COUNTIF(Jaco[Column4],"?*")) -> AGFA CORPORATION | Q58: =IF(ISNUMBER(SEARCH(StorageBox,StorageTable6[Storage])),1,0) -> 0 | R58: =IF(StorageTable6[Colu1] = 1, SUM($Q$2:Q58),0) -> 0 | S58: =IFERROR(INDEX(StorageTable6[Storage],MATCH(ROWS($S$2:S58),StorageTable6[Colu2],0)),"") ->  | U58: =OFFSET($S$2,,,COUNTIF(StorageTable6[Colu3],"?*")) -> 
A59: AGILENT | B59: Agilent Technologies, Inc. | C59: =IF(ISNUMBER(SEARCH(DropBox,Jaco[Vendor Name])),1,0) -> 1 | D59: =IF(Jaco[Column2] = 1, SUM($C$2:C59),0) -> 58 | E59: =IFERROR(INDEX(Jaco[Vendor Name], MATCH(ROWS($E$2:E59),Jaco[Column3],0) ),"") -> Agilent Technologies, Inc. | G59: =OFFSET($E$2,,,COUNTIF(Jaco[Column4],"?*")) -> Agilent Technologies, Inc. | Q59: =IF(ISNUMBER(SEARCH(StorageBox,StorageTable6[Storage])),1,0) -> 0 | R59: =IF(StorageTable6[Colu1] = 1, SUM($Q$2:Q59),0) -> 0 | S59: =IFERROR(INDEX(StorageTable6[Storage],MATCH(ROWS($S$2:S59),StorageTable6[Colu2],0)),"") ->  | U59: =OFFSET($S$2,,,COUNTIF(StorageTable6[Colu3],"?*")) -> 
A60: AGILNT | B60: Agilent | C60: =IF(ISNUMBER(SEARCH(DropBox,Jaco[Vendor Name])),1,0) -> 1 | D60: =IF(Jaco[Column2] = 1, SUM($C$2:C60),0) -> 59 | E60: =IFERROR(INDEX(Jaco[Vendor Name], MATCH(ROWS($E$2:E60),Jaco[Column3],0) ),"") -> Agilent | G60: =OFFSET($E$2,,,COUNTIF(Jaco[Column4],"?*")) -> Agilent
A61: AGILNTECH | B61: Agilent Technologies | C61: =IF(ISNUMBER(SEARCH(DropBox,Jaco[Vendor Name])),1,0) -> 1 | D61: =IF(Jaco[Column2] = 1, SUM($C$2:C61),0) -> 60 | E61: =IFERROR(INDEX(Jaco[Vendor Name], MATCH(ROWS($E$2:E61),Jaco[Column3],0) ),"") -> Agilent Technologies | G61: =OFFSET($E$2,,,COUNTIF(Jaco[Column4],"?*")) -> Agilent Technologies
A62: AGREVO | B62: AGREVO ENVIRONMENTAL HEALTH | C62: =IF(ISNUMBER(SEARCH(DropBox,Jaco[Vendor Name])),1,0) -> 1 | D62: =IF(Jaco[Column2] = 1, SUM($C$2:C62),0) -> 61 | E62: =IFERROR(INDEX(Jaco[Vendor Name], MATCH(ROWS($E$2:E62),Jaco[Column3],0) ),"") -> AGREVO ENVIRONMENTAL HEALTH | G62: =OFFSET($E$2,,,COUNTIF(Jaco[Column4],"?*")) -> AGREVO ENVIRONMENTAL HEALTH
A63: AGTC-BIO | B63: AGTC Bioproducts | C63: =IF(ISNUMBER(SEARCH(DropBox,Jaco[Vendor Name])),1,0) -> 1 | D63: =IF(Jaco[Column2] = 1, SUM($C$2:C63),0) -> 62 | E63: =IFERROR(INDEX(Jaco[Vendor Name], MATCH(ROWS($E$2:E63),Jaco[Column3],0) ),"") -> AGTC Bioproducts | G63: =OFFSET($E$2,,,COUNTIF(Jaco[Column4],"?*")) -> AGTC Bioproducts
A64: AICINC | B64: AIC, Inc. | C64: =IF(ISNUMBER(SEARCH(DropBox,Jaco[Vendor Name])),1,0) -> 1 | D64: =IF(Jaco[Column2] = 1, SUM($C$2:C64),0) -> 63 | E64: =IFERROR(INDEX(Jaco[Vendor Name], MATCH(ROWS($E$2:E64),Jaco[Column3],0) ),"") -> AIC, Inc. | G64: =OFFSET($E$2,,,COUNTIF(Jaco[Column4],"?*")) -> AIC, Inc.
A65: AIR | B65: AIR TECHNIQUE, INC. | C65: =IF(ISNUMBER(SEARCH(DropBox,Jaco[Vendor Name])),1,0) -> 1 | D65: =IF(Jaco[Column2] = 1, SUM($C$2:C65),0) -> 64 | E65: =IFERROR(INDEX(Jaco[Vendor Name], MATCH(ROWS($E$2:E65),Jaco[Column3],0) ),"") -> AIR TECHNIQUE, INC. | G65: =OFFSET($E$2,,,COUNTIF(Jaco[Column4],"?*")) -> AIR TECHNIQUE, INC.
A66: AIRGAS | B66: Airgas Inc. | C66: =IF(ISNUMBER(SEARCH(DropBox,Jaco[Vendor Name])),1,0) -> 1 | D66: =IF(Jaco[Column2] = 1, SUM($C$2:C66),0) -> 65 | E66: =IFERROR(INDEX(Jaco[Vendor Name], MATCH(ROWS($E$2:E66),Jaco[Column3],0) ),"") -> Airgas Inc. | G66: =OFFSET($E$2,,,COUNTIF(Jaco[Column4],"?*")) -> Airgas Inc.
A67: AIRGASNATL | B67: AIR GAS NATIONAL WELDERS | C67: =IF(ISNUMBER(SEARCH(DropBox,Jaco[Vendor Name])),1,0) -> 1 | D67: =IF(Jaco[Column2] = 1, SUM($C$2:C67),0) -> 66 | E67: =IFERROR(INDEX(Jaco[Vendor Name], MATCH(ROWS($E$2:E67),Jaco[Column3],0) ),"") -> AIR GAS NATIONAL WELDERS | G67: =OFFSET($E$2,,,COUNTIF(Jaco[Column4],"?*")) -> AIR GAS NATIONAL WELDERS
A68: AIRGS | B68: Airgas | C68: =IF(ISNUMBER(SEARCH(DropBox,Jaco[Vendor Name])),1,0) -> 1 | D68: =IF(Jaco[Column2] = 1, SUM($C$2:C68),0) -> 67 | E68: =IFERROR(INDEX(Jaco[Vendor Name], MATCH(ROWS($E$2:E68),Jaco[Column3],0) ),"") -> Airgas | G68: =OFFSET($E$2,,,COUNTIF(Jaco[Column4],"?*")) -> Airgas
A69: AIRGSINC | B69: Airgas, Inc. | C69: =IF(ISNUMBER(SEARCH(DropBox,Jaco[Vendor Name])),1,0) -> 1 | D69: =IF(Jaco[Column2] = 1, SUM($C$2:C69),0) -> 68 | E69: =IFERROR(INDEX(Jaco[Vendor Name], MATCH(ROWS($E$2:E69),Jaco[Column3],0) ),"") -> Airgas, Inc. | G69: =OFFSET($E$2,,,COUNTIF(Jaco[Column4],"?*")) -> Airgas, Inc.
A70: AIRLIQUIDE | B70: AIR LIQUIDE | C70: =IF(ISNUMBER(SEARCH(DropBox,Jaco[Vendor Name])),1,0) -> 1 | D70: =IF(Jaco[Column2] = 1, SUM($C$2:C70),0) -> 69 | E70: =IFERROR(INDEX(Jaco[Vendor Name], MATCH(ROWS($E$2:E70),Jaco[Column3],0) ),"") -> AIR LIQUIDE | G70: =OFFSET($E$2,,,COUNTIF(Jaco[Column4],"?*")) -> AIR LIQUIDE
A71: AIRPRODUCT | B71: Air Products & Chemicals Inc. | C71: =IF(ISNUMBER(SEARCH(DropBox,Jaco[Vendor Name])),1,0) -> 1 | D71: =IF(Jaco[Column2] = 1, SUM($C$2:C71),0) -> 70 | E71: =IFERROR(INDEX(Jaco[Vendor Name], MATCH(ROWS($E$2:E71),Jaco[Column3],0) ),"") -> Air Products & Chemicals Inc. | G71: =OFFSET($E$2,,,COUNTIF(Jaco[Column4],"?*")) -> Air Products & Chemicals Inc.
A72: AIRWICK | B72: AIRWICK INDUSTRIES, INC | C72: =IF(ISNUMBER(SEARCH(DropBox,Jaco[Vendor Name])),1,0) -> 1 | D72: =IF(Jaco[Column2] = 1, SUM($C$2:C72),0) -> 71 | E72: =IFERROR(INDEX(Jaco[Vendor Name], MATCH(ROWS($E$2:E72),Jaco[Column3],0) ),"") -> AIRWICK INDUSTRIES, INC | G72: =OFFSET($E$2,,,COUNTIF(Jaco[Column4],"?*")) -> AIRWICK INDUSTRIES, INC
A73: AITHACA | B73: Aithaca Chemical Corp. | C73: =IF(ISNUMBER(SEARCH(DropBox,Jaco[Vendor Name])),1,0) -> 1 | D73: =IF(Jaco[Column2] = 1, SUM($C$2:C73),0) -> 72 | E73: =IFERROR(INDEX(Jaco[Vendor Name], MATCH(ROWS($E$2:E73),Jaco[Column3],0) ),"") -> Aithaca Chemical Corp. | G73: =OFFSET($E$2,,,COUNTIF(Jaco[Column4],"?*")) -> Aithaca Chemical Corp.
A74: AITHACHEM | B74: Aithaca Chemical Corp. | C74: =IF(ISNUMBER(SEARCH(DropBox,Jaco[Vendor Name])),1,0) -> 1 | D74: =IF(Jaco[Column2] = 1, SUM($C$2:C74),0) -> 73 | E74: =IFERROR(INDEX(Jaco[Vendor Name], MATCH(ROWS($E$2:E74),Jaco[Column3],0) ),"") -> Aithaca Chemical Corp. | G74: =OFFSET($E$2,,,COUNTIF(Jaco[Column4],"?*")) -> Aithaca Chemical Corp.
A75: AKRON | B75: AKRON BIOTECH | C75: =IF(ISNUMBER(SEARCH(DropBox,Jaco[Vendor Name])),1,0) -> 1 | D75: =IF(Jaco[Column2] = 1, SUM($C$2:C75),0) -> 74 | E75: =IFERROR(INDEX(Jaco[Vendor Name], MATCH(ROWS($E$2:E75),Jaco[Column3],0) ),"") -> AKRON BIOTECH | G75: =OFFSET($E$2,,,COUNTIF(Jaco[Column4],"?*")) -> AKRON BIOTECH
A76: AKRONBIO | B76: Akron Biotech | C76: =IF(ISNUMBER(SEARCH(DropBox,Jaco[Vendor Name])),1,0) -> 1 | D76: =IF(Jaco[Column2] = 1, SUM($C$2:C76),0) -> 75 | E76: =IFERROR(INDEX(Jaco[Vendor Name], MATCH(ROWS($E$2:E76),Jaco[Column3],0) ),"") -> Akron Biotech | G76: =OFFSET($E$2,,,COUNTIF(Jaco[Column4],"?*")) -> Akron Biotech
A77: AKSCI | B77: AK Scientific, Inc. | C77: =IF(ISNUMBER(SEARCH(DropBox,Jaco[Vendor Name])),1,0) -> 1 | D77: =IF(Jaco[Column2] = 1, SUM($C$2:C77),0) -> 76 | E77: =IFERROR(INDEX(Jaco[Vendor Name], MATCH(ROWS($E$2:E77),Jaco[Column3],0) ),"") -> AK Scientific, Inc. | G77: =OFFSET($E$2,,,COUNTIF(Jaco[Column4],"?*")) -> AK Scientific, Inc.
A78: AKSONOB | B78: AksoNobel | C78: =IF(ISNUMBER(SEARCH(DropBox,Jaco[Vendor Name])),1,0) -> 1 | D78: =IF(Jaco[Column2] = 1, SUM($C$2:C78),0) -> 77 | E78: =IFERROR(INDEX(Jaco[Vendor Name], MATCH(ROWS($E$2:E78),Jaco[Column3],0) ),"") -> AksoNobel | G78: =OFFSET($E$2,,,COUNTIF(Jaco[Column4],"?*")) -> AksoNobel
A79: AKZO | B79: AKZO NOBEL POLYMER CHEMICALS LLC | C79: =IF(ISNUMBER(SEARCH(DropBox,Jaco[Vendor Name])),1,0) -> 1 | D79: =IF(Jaco[Column2] = 1, SUM($C$2:C79),0) -> 78 | E79: =IFERROR(INDEX(Jaco[Vendor Name], MATCH(ROWS($E$2:E79),Jaco[Column3],0) ),"") -> AKZO NOBEL POLYMER CHEMICALS LLC | G79: =OFFSET($E$2,,,COUNTIF(Jaco[Column4],"?*")) -> AKZO NOBEL POLYMER CHEMICALS LLC
A80: ALBANYCHEM | B80: Albany Chemical Co. | C80: =IF(ISNUMBER(SEARCH(DropBox,Jaco[Vendor Name])),1,0) -> 1 | D80: =IF(Jaco[Column2] = 1, SUM($C$2:C80),0) -> 79 | E80: =IFERROR(INDEX(Jaco[Vendor Name], MATCH(ROWS($E$2:E80),Jaco[Column3],0) ),"") -> Albany Chemical Co. | G80: =OFFSET($E$2,,,COUNTIF(Jaco[Column4],"?*")) -> Albany Chemical Co.
A81: ALBAUGH | B81: ALBAUGH, INC. | C81: =IF(ISNUMBER(SEARCH(DropBox,Jaco[Vendor Name])),1,0) -> 1 | D81: =IF(Jaco[Column2] = 1, SUM($C$2:C81),0) -> 80 | E81: =IFERROR(INDEX(Jaco[Vendor Name], MATCH(ROWS($E$2:E81),Jaco[Column3],0) ),"") -> ALBAUGH, INC. | G81: =OFFSET($E$2,,,COUNTIF(Jaco[Column4],"?*")) -> ALBAUGH, INC.
A82: ALCHEM | B82: Alchem Laboratories | C82: =IF(ISNUMBER(SEARCH(DropBox,Jaco[Vendor Name])),1,0) -> 1 | D82: =IF(Jaco[Column2] = 1, SUM($C$2:C82),0) -> 81 | E82: =IFERROR(INDEX(Jaco[Vendor Name], MATCH(ROWS($E$2:E82),Jaco[Column3],0) ),"") -> Alchem Laboratories | G82: =OFFSET($E$2,,,COUNTIF(Jaco[Column4],"?*")) -> Alchem Laboratories
A83: ALCHEMY | B83: ALCHEMY EXTRUSIONS | C83: =IF(ISNUMBER(SEARCH(DropBox,Jaco[Vendor Name])),1,0) -> 1 | D83: =IF(Jaco[Column2] = 1, SUM($C$2:C83),0) -> 82 | E83: =IFERROR(INDEX(Jaco[Vendor Name], MATCH(ROWS($E$2:E83),Jaco[Column3],0) ),"") -> ALCHEMY EXTRUSIONS | G83: =OFFSET($E$2,,,COUNTIF(Jaco[Column4],"?*")) -> ALCHEMY EXTRUSIONS
A84: ALCIDE | B84: ALCIDE CORPORATION | C84: =IF(ISNUMBER(SEARCH(DropBox,Jaco[Vendor Name])),1,0) -> 1 | D84: =IF(Jaco[Column2] = 1, SUM($C$2:C84),0) -> 83 | E84: =IFERROR(INDEX(Jaco[Vendor Name], MATCH(ROWS($E$2:E84),Jaco[Column3],0) ),"") -> ALCIDE CORPORATION | G84: =OFFSET($E$2,,,COUNTIF(Jaco[Column4],"?*")) -> ALCIDE CORPORATION
A85: ALDRCHEM | B85: ALDRICH CHEMICAL COMPANY, INC. | C85: =IF(ISNUMBER(SEARCH(DropBox,Jaco[Vendor Name])),1,0) -> 1 | D85: =IF(Jaco[Column2] = 1, SUM($C$2:C85),0) -> 84 | E85: =IFERROR(INDEX(Jaco[Vendor Name], MATCH(ROWS($E$2:E85),Jaco[Column3],0) ),"") -> ALDRICH CHEMICAL COMPANY, INC. | G85: =OFFSET($E$2,,,COUNTIF(Jaco[Column4],"?*")) -> ALDRICH CHEMICAL COMPANY, INC.
A86: ALEXIS | B86: Alexis Corporation | C86: =IF(ISNUMBER(SEARCH(DropBox,Jaco[Vendor Name])),1,0) -> 1 | D86: =IF(Jaco[Column2] = 1, SUM($C$2:C86),0) -> 85 | E86: =IFERROR(INDEX(Jaco[Vendor Name], MATCH(ROWS($E$2:E86),Jaco[Column3],0) ),"") -> Alexis Corporation | G86: =OFFSET($E$2,,,COUNTIF(Jaco[Column4],"?*")) -> Alexis Corporation
A87: Alexis Bio | B87: Alexis Biochemicals | C87: =IF(ISNUMBER(SEARCH(DropBox,Jaco[Vendor Name])),1,0) -> 1 | D87: =IF(Jaco[Column2] = 1, SUM($C$2:C87),0) -> 86 | E87: =IFERROR(INDEX(Jaco[Vendor Name], MATCH(ROWS($E$2:E87),Jaco[Column3],0) ),"") -> Alexis Biochemicals | G87: =OFFSET($E$2,,,COUNTIF(Jaco[Column4],"?*")) -> Alexis Biochemicals
A88: ALEXISCO | B88: ALEXIS Corporation | C88: =IF(ISNUMBER(SEARCH(DropBox,Jaco[Vendor Name])),1,0) -> 1 | D88: =IF(Jaco[Column2] = 1, SUM($C$2:C88),0) -> 87 | E88: =IFERROR(INDEX(Jaco[Vendor Name], MATCH(ROWS($E$2:E88),Jaco[Column3],0) ),"") -> ALEXIS Corporation | G88: =OFFSET($E$2,,,COUNTIF(Jaco[Column4],"?*")) -> ALEXIS Corporation
A89: ALFA-AESAR | B89: Alfa Aesar/Johnson Matthey | C89: =IF(ISNUMBER(SEARCH(DropBox,Jaco[Vendor Name])),1,0) -> 1 | D89: =IF(Jaco[Column2] = 1, SUM($C$2:C89),0) -> 88 | E89: =IFERROR(INDEX(Jaco[Vendor Name], MATCH(ROWS($E$2:E89),Jaco[Column3],0) ),"") -> Alfa Aesar/Johnson Matthey | G89: =OFFSET($E$2,,,COUNTIF(Jaco[Column4],"?*")) -> Alfa Aesar/Johnson Matthey
A90: ALFAA | B90: Alfa Aesar | C90: =IF(ISNUMBER(SEARCH(DropBox,Jaco[Vendor Name])),1,0) -> 1 | D90: =IF(Jaco[Column2] = 1, SUM($C$2:C90),0) -> 89 | E90: =IFERROR(INDEX(Jaco[Vendor Name], MATCH(ROWS($E$2:E90),Jaco[Column3],0) ),"") -> Alfa Aesar | G90: =OFFSET($E$2,,,COUNTIF(Jaco[Column4],"?*")) -> Alfa Aesar
A91: ALFAACHINA | B91: Alfa Aesar, China Ltd. | C91: =IF(ISNUMBER(SEARCH(DropBox,Jaco[Vendor Name])),1,0) -> 1 | D91: =IF(Jaco[Column2] = 1, SUM($C$2:C91),0) -> 90 | E91: =IFERROR(INDEX(Jaco[Vendor Name], MATCH(ROWS($E$2:E91),Jaco[Column3],0) ),"") -> Alfa Aesar, China Ltd. | G91: =OFFSET($E$2,,,COUNTIF(Jaco[Column4],"?*")) -> Alfa Aesar, China Ltd.
A92: AlfaAesar | B92: Alfa-Aesar | C92: =IF(ISNUMBER(SEARCH(DropBox,Jaco[Vendor Name])),1,0) -> 1 | D92: =IF(Jaco[Column2] = 1, SUM($C$2:C92),0) -> 91 | E92: =IFERROR(INDEX(Jaco[Vendor Name], MATCH(ROWS($E$2:E92),Jaco[Column3],0) ),"") -> Alfa-Aesar | G92: =OFFSET($E$2,,,COUNTIF(Jaco[Column4],"?*")) -> Alfa-Aesar
A93: ALFAM | B93: Alfamatrix | C93: =IF(ISNUMBER(SEARCH(DropBox,Jaco[Vendor Name])),1,0) -> 1 | D93: =IF(Jaco[Column2] = 1, SUM($C$2:C93),0) -> 92 | E93: =IFERROR(INDEX(Jaco[Vendor Name], MATCH(ROWS($E$2:E93),Jaco[Column3],0) ),"") -> Alfamatrix | G93: =OFFSET($E$2,,,COUNTIF(Jaco[Column4],"?*")) -> Alfamatrix
A94: ALIQUOTS | B94: Aliquots Fine Chemicals | C94: =IF(ISNUMBER(SEARCH(DropBox,Jaco[Vendor Name])),1,0) -> 1 | D94: =IF(Jaco[Column2] = 1, SUM($C$2:C94),0) -> 93 | E94: =IFERROR(INDEX(Jaco[Vendor Name], MATCH(ROWS($E$2:E94),Jaco[Column3],0) ),"") -> Aliquots Fine Chemicals | G94: =OFFSET($E$2,,,COUNTIF(Jaco[Column4],"?*")) -> Aliquots Fine Chemicals
A95: ALLDYNE | B95: Alldyne Powder Technologies | C95: =IF(ISNUMBER(SEARCH(DropBox,Jaco[Vendor Name])),1,0) -> 1 | D95: =IF(Jaco[Column2] = 1, SUM($C$2:C95),0) -> 94 | E95: =IFERROR(INDEX(Jaco[Vendor Name], MATCH(ROWS($E$2:E95),Jaco[Column3],0) ),"") -> Alldyne Powder Technologies | G95: =OFFSET($E$2,,,COUNTIF(Jaco[Column4],"?*")) -> Alldyne Powder Technologies
A96: ALLEGRO | B96: ALLEGRO MEDICAL | C96: =IF(ISNUMBER(SEARCH(DropBox,Jaco[Vendor Name])),1,0) -> 1 | D96: =IF(Jaco[Column2] = 1, SUM($C$2:C96),0) -> 95 | E96: =IFERROR(INDEX(Jaco[Vendor Name], MATCH(ROWS($E$2:E96),Jaco[Column3],0) ),"") -> ALLEGRO MEDICAL | G96: =OFFSET($E$2,,,COUNTIF(Jaco[Column4],"?*")) -> ALLEGRO MEDICAL
A97: ALLIEDCH | B97: Allied Chem | C97: =IF(ISNUMBER(SEARCH(DropBox,Jaco[Vendor Name])),1,0) -> 1 | D97: =IF(Jaco[Column2] = 1, SUM($C$2:C97),0) -> 96 | E97: =IFERROR(INDEX(Jaco[Vendor Name], MATCH(ROWS($E$2:E97),Jaco[Column3],0) ),"") -> Allied Chem | G97: =OFFSET($E$2,,,COUNTIF(Jaco[Column4],"?*")) -> Allied Chem
A98: ALLIEDCHCO | B98: Allied Chemical Company | C98: =IF(ISNUMBER(SEARCH(DropBox,Jaco[Vendor Name])),1,0) -> 1 | D98: =IF(Jaco[Column2] = 1, SUM($C$2:C98),0) -> 97 | E98: =IFERROR(INDEX(Jaco[Vendor Name], MATCH(ROWS($E$2:E98),Jaco[Column3],0) ),"") -> Allied Chemical Company | G98: =OFFSET($E$2,,,COUNTIF(Jaco[Column4],"?*")) -> Allied Chemical Company
A99: ALLIEDCHEM | B99: Allied Chemical (Honeywell) | C99: =IF(ISNUMBER(SEARCH(DropBox,Jaco[Vendor Name])),1,0) -> 1 | D99: =IF(Jaco[Column2] = 1, SUM($C$2:C99),0) -> 98 | E99: =IFERROR(INDEX(Jaco[Vendor Name], MATCH(ROWS($E$2:E99),Jaco[Column3],0) ),"") -> Allied Chemical (Honeywell) | G99: =OFFSET($E$2,,,COUNTIF(Jaco[Column4],"?*")) -> Allied Chemical (Honeywell)
A100: ALLPURE | B100: All Pure Chemnical Company | C100: =IF(ISNUMBER(SEARCH(DropBox,Jaco[Vendor Name])),1,0) -> 1 | D100: =IF(Jaco[Column2] = 1, SUM($C$2:C100),0) -> 99 | E100: =IFERROR(INDEX(Jaco[Vendor Name], MATCH(ROWS($E$2:E100),Jaco[Column3],0) ),"") -> All Pure Chemnical Company | G100: =OFFSET($E$2,,,COUNTIF(Jaco[Column4],"?*")) -> All Pure Chemnical Company
A101: ALLPURP | B101: All Purpose Adhesive Company | C101: =IF(ISNUMBER(SEARCH(DropBox,Jaco[Vendor Name])),1,0) -> 1 | D101: =IF(Jaco[Column2] = 1, SUM($C$2:C101),0) -> 100 | E101: =IFERROR(INDEX(Jaco[Vendor Name], MATCH(ROWS($E$2:E101),Jaco[Column3],0) ),"") -> All Purpose Adhesive Company | G101: =OFFSET($E$2,,,COUNTIF(Jaco[Column4],"?*")) -> All Purpose Adhesive Company
A102: ALLSTAR | B102: Allstar Scientific | C102: =IF(ISNUMBER(SEARCH(DropBox,Jaco[Vendor Name])),1,0) -> 1 | D102: =IF(Jaco[Column2] = 1, SUM($C$2:C102),0) -> 101 | E102: =IFERROR(INDEX(Jaco[Vendor Name], MATCH(ROWS($E$2:E102),Jaco[Column3],0) ),"") -> Allstar Scientific | G102: =OFFSET($E$2,,,COUNTIF(Jaco[Column4],"?*")) -> Allstar Scientific
A103: ALLTECH | B103: Alltech Associates | C103: =IF(ISNUMBER(SEARCH(DropBox,Jaco[Vendor Name])),1,0) -> 1 | D103: =IF(Jaco[Column2] = 1, SUM($C$2:C103),0) -> 102 | E103: =IFERROR(INDEX(Jaco[Vendor Name], MATCH(ROWS($E$2:E103),Jaco[Column3],0) ),"") -> Alltech Associates | G103: =OFFSET($E$2,,,COUNTIF(Jaco[Column4],"?*")) -> Alltech Associates
A104: ALOMONE | B104: Alomone Labs Ltd. | C104: =IF(ISNUMBER(SEARCH(DropBox,Jaco[Vendor Name])),1,0) -> 1 | D104: =IF(Jaco[Column2] = 1, SUM($C$2:C104),0) -> 103 | E104: =IFERROR(INDEX(Jaco[Vendor Name], MATCH(ROWS($E$2:E104),Jaco[Column3],0) ),"") -> Alomone Labs Ltd. | G104: =OFFSET($E$2,,,COUNTIF(Jaco[Column4],"?*")) -> Alomone Labs Ltd.
A105: ALPCO | B105: ALPCO DIAGNOSTICS | C105: =IF(ISNUMBER(SEARCH(DropBox,Jaco[Vendor Name])),1,0) -> 1 | D105: =IF(Jaco[Column2] = 1, SUM($C$2:C105),0) -> 104 | E105: =IFERROR(INDEX(Jaco[Vendor Name], MATCH(ROWS($E$2:E105),Jaco[Column3],0) ),"") -> ALPCO DIAGNOSTICS | G105: =OFFSET($E$2,,,COUNTIF(Jaco[Column4],"?*")) -> ALPCO DIAGNOSTICS
A106: ALPHAMET | B106: ALPHA METALS | C106: =IF(ISNUMBER(SEARCH(DropBox,Jaco[Vendor Name])),1,0) -> 1 | D106: =IF(Jaco[Column2] = 1, SUM($C$2:C106),0) -> 105 | E106: =IFERROR(INDEX(Jaco[Vendor Name], MATCH(ROWS($E$2:E106),Jaco[Column3],0) ),"") -> ALPHA METALS | G106: =OFFSET($E$2,,,COUNTIF(Jaco[Column4],"?*")) -> ALPHA METALS
A107: ALPHATEC | B107: Alpha-Tec Systems, Incorporated | C107: =IF(ISNUMBER(SEARCH(DropBox,Jaco[Vendor Name])),1,0) -> 1 | D107: =IF(Jaco[Column2] = 1, SUM($C$2:C107),0) -> 106 | E107: =IFERROR(INDEX(Jaco[Vendor Name], MATCH(ROWS($E$2:E107),Jaco[Column3],0) ),"") -> Alpha-Tec Systems, Incorporated | G107: =OFFSET($E$2,,,COUNTIF(Jaco[Column4],"?*")) -> Alpha-Tec Systems, Incorporated
A108: ALUWAX | B108: ALUWAX DENTAL PRODUCTS | C108: =IF(ISNUMBER(SEARCH(DropBox,Jaco[Vendor Name])),1,0) -> 1 | D108: =IF(Jaco[Column2] = 1, SUM($C$2:C108),0) -> 107 | E108: =IFERROR(INDEX(Jaco[Vendor Name], MATCH(ROWS($E$2:E108),Jaco[Column3],0) ),"") -> ALUWAX DENTAL PRODUCTS | G108: =OFFSET($E$2,,,COUNTIF(Jaco[Column4],"?*")) -> ALUWAX DENTAL PRODUCTS
A109: AMARTCLAY | B109: AMERICAN ART CLAY CO (AMACO) | C109: =IF(ISNUMBER(SEARCH(DropBox,Jaco[Vendor Name])),1,0) -> 1 | D109: =IF(Jaco[Column2] = 1, SUM($C$2:C109),0) -> 108 | E109: =IFERROR(INDEX(Jaco[Vendor Name], MATCH(ROWS($E$2:E109),Jaco[Column3],0) ),"") -> AMERICAN ART CLAY CO (AMACO) | G109: =OFFSET($E$2,,,COUNTIF(Jaco[Column4],"?*")) -> AMERICAN ART CLAY CO (AMACO)
A110: AMAZON | B110: Amazon.com | C110: =IF(ISNUMBER(SEARCH(DropBox,Jaco[Vendor Name])),1,0) -> 1 | D110: =IF(Jaco[Column2] = 1, SUM($C$2:C110),0) -> 109 | E110: =IFERROR(INDEX(Jaco[Vendor Name], MATCH(ROWS($E$2:E110),Jaco[Column3],0) ),"") -> Amazon.com | G110: =OFFSET($E$2,,,COUNTIF(Jaco[Column4],"?*")) -> Amazon.com
A111: AMBIN | B111: Ambion | C111: =IF(ISNUMBER(SEARCH(DropBox,Jaco[Vendor Name])),1,0) -> 1 | D111: =IF(Jaco[Column2] = 1, SUM($C$2:C111),0) -> 110 | E111: =IFERROR(INDEX(Jaco[Vendor Name], MATCH(ROWS($E$2:E111),Jaco[Column3],0) ),"") -> Ambion | G111: =OFFSET($E$2,,,COUNTIF(Jaco[Column4],"?*")) -> Ambion
A112: AMBIOANALY | B112: American Bioanalytical Inc. | C112: =IF(ISNUMBER(SEARCH(DropBox,Jaco[Vendor Name])),1,0) -> 1 | D112: =IF(Jaco[Column2] = 1, SUM($C$2:C112),0) -> 111 | E112: =IFERROR(INDEX(Jaco[Vendor Name], MATCH(ROWS($E$2:E112),Jaco[Column3],0) ),"") -> American Bioanalytical Inc. | G112: =OFFSET($E$2,,,COUNTIF(Jaco[Column4],"?*")) -> American Bioanalytical Inc.
A113: AMBIOCH | B113: American Biochemicals | C113: =IF(ISNUMBER(SEARCH(DropBox,Jaco[Vendor Name])),1,0) -> 1 | D113: =IF(Jaco[Column2] = 1, SUM($C$2:C113),0) -> 112 | E113: =IFERROR(INDEX(Jaco[Vendor Name], MATCH(ROWS($E$2:E113),Jaco[Column3],0) ),"") -> American Biochemicals | G113: =OFFSET($E$2,,,COUNTIF(Jaco[Column4],"?*")) -> American Biochemicals
A114: AMBION | B114: Ambion Inc. | C114: =IF(ISNUMBER(SEARCH(DropBox,Jaco[Vendor Name])),1,0) -> 1 | D114: =IF(Jaco[Column2] = 1, SUM($C$2:C114),0) -> 113 | E114: =IFERROR(INDEX(Jaco[Vendor Name], MATCH(ROWS($E$2:E114),Jaco[Column3],0) ),"") -> Ambion Inc. | G114: =OFFSET($E$2,,,COUNTIF(Jaco[Column4],"?*")) -> Ambion Inc.
A115: AMBRANDS | B115: AMBRANDS | C115: =IF(ISNUMBER(SEARCH(DropBox,Jaco[Vendor Name])),1,0) -> 1 | D115: =IF(Jaco[Column2] = 1, SUM($C$2:C115),0) -> 114 | E115: =IFERROR(INDEX(Jaco[Vendor Name], MATCH(ROWS($E$2:E115),Jaco[Column3],0) ),"") -> AMBRANDS | G115: =OFFSET($E$2,,,COUNTIF(Jaco[Column4],"?*")) -> AMBRANDS
A116: AMENDCH | B116: Amend Chemical Co. | C116: =IF(ISNUMBER(SEARCH(DropBox,Jaco[Vendor Name])),1,0) -> 1 | D116: =IF(Jaco[Column2] = 1, SUM($C$2:C116),0) -> 115 | E116: =IFERROR(INDEX(Jaco[Vendor Name], MATCH(ROWS($E$2:E116),Jaco[Column3],0) ),"") -> Amend Chemical Co. | G116: =OFFSET($E$2,,,COUNTIF(Jaco[Column4],"?*")) -> Amend Chemical Co.
A117: AMER-DIOG | B117: American Diagnostics | C117: =IF(ISNUMBER(SEARCH(DropBox,Jaco[Vendor Name])),1,0) -> 1 | D117: =IF(Jaco[Column2] = 1, SUM($C$2:C117),0) -> 116 | E117: =IFERROR(INDEX(Jaco[Vendor Name], MATCH(ROWS($E$2:E117),Jaco[Column3],0) ),"") -> American Diagnostics | G117: =OFFSET($E$2,,,COUNTIF(Jaco[Column4],"?*")) -> American Diagnostics
A118: AMER-R | B118: AMERICAN R | C118: =IF(ISNUMBER(SEARCH(DropBox,Jaco[Vendor Name])),1,0) -> 1 | D118: =IF(Jaco[Column2] = 1, SUM($C$2:C118),0) -> 117 | E118: =IFERROR(INDEX(Jaco[Vendor Name], MATCH(ROWS($E$2:E118),Jaco[Column3],0) ),"") -> AMERICAN R | G118: =OFFSET($E$2,,,COUNTIF(Jaco[Column4],"?*")) -> AMERICAN R
A119: AMERBIO | B119: American Bioanalytical | C119: =IF(ISNUMBER(SEARCH(DropBox,Jaco[Vendor Name])),1,0) -> 1 | D119: =IF(Jaco[Column2] = 1, SUM($C$2:C119),0) -> 118 | E119: =IFERROR(INDEX(Jaco[Vendor Name], MATCH(ROWS($E$2:E119),Jaco[Column3],0) ),"") -> American Bioanalytical | G119: =OFFSET($E$2,,,COUNTIF(Jaco[Column4],"?*")) -> American Bioanalytical
A120: AMERBIOINC | B120: American Bioanalytical Incorporated | C120: =IF(ISNUMBER(SEARCH(DropBox,Jaco[Vendor Name])),1,0) -> 1 | D120: =IF(Jaco[Column2] = 1, SUM($C$2:C120),0) -> 119 | E120: =IFERROR(INDEX(Jaco[Vendor Name], MATCH(ROWS($E$2:E120),Jaco[Column3],0) ),"") -> American Bioanalytical Incorporated | G120: =OFFSET($E$2,,,COUNTIF(Jaco[Column4],"?*")) -> American Bioanalytical Incorporated
A121: AMERCBIO | B121: AmericanBio, Inc. | C121: =IF(ISNUMBER(SEARCH(DropBox,Jaco[Vendor Name])),1,0) -> 1 | D121: =IF(Jaco[Column2] = 1, SUM($C$2:C121),0) -> 120 | E121: =IFERROR(INDEX(Jaco[Vendor Name], MATCH(ROWS($E$2:E121),Jaco[Column3],0) ),"") -> AmericanBio, Inc. | G121: =OFFSET($E$2,,,COUNTIF(Jaco[Column4],"?*")) -> AmericanBio, Inc.
A122: AMERELE | B122: American Elements | C122: =IF(ISNUMBER(SEARCH(DropBox,Jaco[Vendor Name])),1,0) -> 1 | D122: =IF(Jaco[Column2] = 1, SUM($C$2:C122),0) -> 121 | E122: =IFERROR(INDEX(Jaco[Vendor Name], MATCH(ROWS($E$2:E122),Jaco[Column3],0) ),"") -> American Elements | G122: =OFFSET($E$2,,,COUNTIF(Jaco[Column4],"?*")) -> American Elements
A123: AMERESCO | B123: Ameresco Inc. | C123: =IF(ISNUMBER(SEARCH(DropBox,Jaco[Vendor Name])),1,0) -> 1 | D123: =IF(Jaco[Column2] = 1, SUM($C$2:C123),0) -> 122 | E123: =IFERROR(INDEX(Jaco[Vendor Name], MATCH(ROWS($E$2:E123),Jaco[Column3],0) ),"") -> Ameresco Inc. | G123: =OFFSET($E$2,,,COUNTIF(Jaco[Column4],"?*")) -> Ameresco Inc.
A124: AMERICAN | B124: American Dental Supply | C124: =IF(ISNUMBER(SEARCH(DropBox,Jaco[Vendor Name])),1,0) -> 1 | D124: =IF(Jaco[Column2] = 1, SUM($C$2:C124),0) -> 123 | E124: =IFERROR(INDEX(Jaco[Vendor Name], MATCH(ROWS($E$2:E124),Jaco[Column3],0) ),"") -> American Dental Supply | G124: =OFFSET($E$2,,,COUNTIF(Jaco[Column4],"?*")) -> American Dental Supply
A125: AMERIPAC | B125: AmeriPac | C125: =IF(ISNUMBER(SEARCH(DropBox,Jaco[Vendor Name])),1,0) -> 1 | D125: =IF(Jaco[Column2] = 1, SUM($C$2:C125),0) -> 124 | E125: =IFERROR(INDEX(Jaco[Vendor Name], MATCH(ROWS($E$2:E125),Jaco[Column3],0) ),"") -> AmeriPac | G125: =OFFSET($E$2,,,COUNTIF(Jaco[Column4],"?*")) -> AmeriPac
A126: AMERSHAM | B126: Amersham Biosciences | C126: =IF(ISNUMBER(SEARCH(DropBox,Jaco[Vendor Name])),1,0) -> 1 | D126: =IF(Jaco[Column2] = 1, SUM($C$2:C126),0) -> 125 | E126: =IFERROR(INDEX(Jaco[Vendor Name], MATCH(ROWS($E$2:E126),Jaco[Column3],0) ),"") -> Amersham Biosciences | G126: =OFFSET($E$2,,,COUNTIF(Jaco[Column4],"?*")) -> Amersham Biosciences
A127: AMERSHBIO | B127: AMERSHAM BIOSCIENCES, INC. | C127: =IF(ISNUMBER(SEARCH(DropBox,Jaco[Vendor Name])),1,0) -> 1 | D127: =IF(Jaco[Column2] = 1, SUM($C$2:C127),0) -> 126 | E127: =IFERROR(INDEX(Jaco[Vendor Name], MATCH(ROWS($E$2:E127),Jaco[Column3],0) ),"") -> AMERSHAM BIOSCIENCES, INC. | G127: =OFFSET($E$2,,,COUNTIF(Jaco[Column4],"?*")) -> AMERSHAM BIOSCIENCES, INC.
A128: AMERTOOL | B128: AMERICAN TOOL COMPANIES, INC. | C128: =IF(ISNUMBER(SEARCH(DropBox,Jaco[Vendor Name])),1,0) -> 1 | D128: =IF(Jaco[Column2] = 1, SUM($C$2:C128),0) -> 127 | E128: =IFERROR(INDEX(Jaco[Vendor Name], MATCH(ROWS($E$2:E128),Jaco[Column3],0) ),"") -> AMERICAN TOOL COMPANIES, INC. | G128: =OFFSET($E$2,,,COUNTIF(Jaco[Column4],"?*")) -> AMERICAN TOOL COMPANIES, INC.
A129: AMMASTECH | B129: American Master Tech Scientific | C129: =IF(ISNUMBER(SEARCH(DropBox,Jaco[Vendor Name])),1,0) -> 1 | D129: =IF(Jaco[Column2] = 1, SUM($C$2:C129),0) -> 128 | E129: =IFERROR(INDEX(Jaco[Vendor Name], MATCH(ROWS($E$2:E129),Jaco[Column3],0) ),"") -> American Master Tech Scientific | G129: =OFFSET($E$2,,,COUNTIF(Jaco[Column4],"?*")) -> American Master Tech Scientific
A130: AMOCOL | B130: Amocol Bioprocedures Limited | C130: =IF(ISNUMBER(SEARCH(DropBox,Jaco[Vendor Name])),1,0) -> 1 | D130: =IF(Jaco[Column2] = 1, SUM($C$2:C130),0) -> 129 | E130: =IFERROR(INDEX(Jaco[Vendor Name], MATCH(ROWS($E$2:E130),Jaco[Column3],0) ),"") -> Amocol Bioprocedures Limited | G130: =OFFSET($E$2,,,COUNTIF(Jaco[Column4],"?*")) -> Amocol Bioprocedures Limited
A131: AMREP | B131: AMREP, INC. | C131: =IF(ISNUMBER(SEARCH(DropBox,Jaco[Vendor Name])),1,0) -> 1 | D131: =IF(Jaco[Column2] = 1, SUM($C$2:C131),0) -> 130 | E131: =IFERROR(INDEX(Jaco[Vendor Name], MATCH(ROWS($E$2:E131),Jaco[Column3],0) ),"") -> AMREP, INC. | G131: =OFFSET($E$2,,,COUNTIF(Jaco[Column4],"?*")) -> AMREP, INC.
A132: AMRESC | B132: Amresco | C132: =IF(ISNUMBER(SEARCH(DropBox,Jaco[Vendor Name])),1,0) -> 1 | D132: =IF(Jaco[Column2] = 1, SUM($C$2:C132),0) -> 131 | E132: =IFERROR(INDEX(Jaco[Vendor Name], MATCH(ROWS($E$2:E132),Jaco[Column3],0) ),"") -> Amresco | G132: =OFFSET($E$2,,,COUNTIF(Jaco[Column4],"?*")) -> Amresco
A133: AMRESCO | B133: AMRESCO Inc. | C133: =IF(ISNUMBER(SEARCH(DropBox,Jaco[Vendor Name])),1,0) -> 1 | D133: =IF(Jaco[Column2] = 1, SUM($C$2:C133),0) -> 132 | E133: =IFERROR(INDEX(Jaco[Vendor Name], MATCH(ROWS($E$2:E133),Jaco[Column3],0) ),"") -> AMRESCO Inc. | G133: =OFFSET($E$2,,,COUNTIF(Jaco[Column4],"?*")) -> AMRESCO Inc.
A134: AMSBIO | B134: AMS BIOTECHNOLOGY | C134: =IF(ISNUMBER(SEARCH(DropBox,Jaco[Vendor Name])),1,0) -> 1 | D134: =IF(Jaco[Column2] = 1, SUM($C$2:C134),0) -> 133 | E134: =IFERROR(INDEX(Jaco[Vendor Name], MATCH(ROWS($E$2:E134),Jaco[Column3],0) ),"") -> AMS BIOTECHNOLOGY | G134: =OFFSET($E$2,,,COUNTIF(Jaco[Column4],"?*")) -> AMS BIOTECHNOLOGY
A135: AMSOIL | B135: AMSOIL | C135: =IF(ISNUMBER(SEARCH(DropBox,Jaco[Vendor Name])),1,0) -> 1 | D135: =IF(Jaco[Column2] = 1, SUM($C$2:C135),0) -> 134 | E135: =IFERROR(INDEX(Jaco[Vendor Name], MATCH(ROWS($E$2:E135),Jaco[Column3],0) ),"") -> AMSOIL | G135: =OFFSET($E$2,,,COUNTIF(Jaco[Column4],"?*")) -> AMSOIL
A136: AMT | B136: AMT | C136: =IF(ISNUMBER(SEARCH(DropBox,Jaco[Vendor Name])),1,0) -> 1 | D136: =IF(Jaco[Column2] = 1, SUM($C$2:C136),0) -> 135 | E136: =IFERROR(INDEX(Jaco[Vendor Name], MATCH(ROWS($E$2:E136),Jaco[Column3],0) ),"") -> AMT | G136: =OFFSET($E$2,,,COUNTIF(Jaco[Column4],"?*")) -> AMT
A137: AMTEX | B137: Amtex Drug & Chemical Co. | C137: =IF(ISNUMBER(SEARCH(DropBox,Jaco[Vendor Name])),1,0) -> 1 | D137: =IF(Jaco[Column2] = 1, SUM($C$2:C137),0) -> 136 | E137: =IFERROR(INDEX(Jaco[Vendor Name], MATCH(ROWS($E$2:E137),Jaco[Column3],0) ),"") -> Amtex Drug & Chemical Co. | G137: =OFFSET($E$2,,,COUNTIF(Jaco[Column4],"?*")) -> Amtex Drug & Chemical Co.
A138: AMVAC | B138: AMVAC CHEMICAL CORPORATION | C138: =IF(ISNUMBER(SEARCH(DropBox,Jaco[Vendor Name])),1,0) -> 1 | D138: =IF(Jaco[Column2] = 1, SUM($C$2:C138),0) -> 137 | E138: =IFERROR(INDEX(Jaco[Vendor Name], MATCH(ROWS($E$2:E138),Jaco[Column3],0) ),"") -> AMVAC CHEMICAL CORPORATION | G138: =OFFSET($E$2,,,COUNTIF(Jaco[Column4],"?*")) -> AMVAC CHEMICAL CORPORATION
A139: ANACHEM | B139: Anachemia | C139: =IF(ISNUMBER(SEARCH(DropBox,Jaco[Vendor Name])),1,0) -> 1 | D139: =IF(Jaco[Column2] = 1, SUM($C$2:C139),0) -> 138 | E139: =IFERROR(INDEX(Jaco[Vendor Name], MATCH(ROWS($E$2:E139),Jaco[Column3],0) ),"") -> Anachemia | G139: =OFFSET($E$2,,,COUNTIF(Jaco[Column4],"?*")) -> Anachemia
A140: ANACHEMINC | B140: Anachemia Chemicals Inc. | C140: =IF(ISNUMBER(SEARCH(DropBox,Jaco[Vendor Name])),1,0) -> 1 | D140: =IF(Jaco[Column2] = 1, SUM($C$2:C140),0) -> 139 | E140: =IFERROR(INDEX(Jaco[Vendor Name], MATCH(ROWS($E$2:E140),Jaco[Column3],0) ),"") -> Anachemia Chemicals Inc. | G140: =OFFSET($E$2,,,COUNTIF(Jaco[Column4],"?*")) -> Anachemia Chemicals Inc.
A141: ANALAB | B141: Analabs | C141: =IF(ISNUMBER(SEARCH(DropBox,Jaco[Vendor Name])),1,0) -> 1 | D141: =IF(Jaco[Column2] = 1, SUM($C$2:C141),0) -> 140 | E141: =IFERROR(INDEX(Jaco[Vendor Name], MATCH(ROWS($E$2:E141),Jaco[Column3],0) ),"") -> Analabs | G141: =OFFSET($E$2,,,COUNTIF(Jaco[Column4],"?*")) -> Analabs
A142: ANALYTSRV | B142: Analytical Services | C142: =IF(ISNUMBER(SEARCH(DropBox,Jaco[Vendor Name])),1,0) -> 1 | D142: =IF(Jaco[Column2] = 1, SUM($C$2:C142),0) -> 141 | E142: =IFERROR(INDEX(Jaco[Vendor Name], MATCH(ROWS($E$2:E142),Jaco[Column3],0) ),"") -> Analytical Services | G142: =OFFSET($E$2,,,COUNTIF(Jaco[Column4],"?*")) -> Analytical Services
A143: ANALYTYKA | B143: Analytyka | C143: =IF(ISNUMBER(SEARCH(DropBox,Jaco[Vendor Name])),1,0) -> 1 | D143: =IF(Jaco[Column2] = 1, SUM($C$2:C143),0) -> 142 | E143: =IFERROR(INDEX(Jaco[Vendor Name], MATCH(ROWS($E$2:E143),Jaco[Column3],0) ),"") -> Analytyka | G143: =OFFSET($E$2,,,COUNTIF(Jaco[Column4],"?*")) -> Analytyka
A144: ANASPEC | B144: AnaSpec Inc. | C144: =IF(ISNUMBER(SEARCH(DropBox,Jaco[Vendor Name])),1,0) -> 1 | D144: =IF(Jaco[Column2] = 1, SUM($C$2:C144),0) -> 143 | E144: =IFERROR(INDEX(Jaco[Vendor Name], MATCH(ROWS($E$2:E144),Jaco[Column3],0) ),"") -> AnaSpec Inc. | G144: =OFFSET($E$2,,,COUNTIF(Jaco[Column4],"?*")) -> AnaSpec Inc.
A145: ANASPINC | B145: AnaSpec, Inc. | C145: =IF(ISNUMBER(SEARCH(DropBox,Jaco[Vendor Name])),1,0) -> 1 | D145: =IF(Jaco[Column2] = 1, SUM($C$2:C145),0) -> 144 | E145: =IFERROR(INDEX(Jaco[Vendor Name], MATCH(ROWS($E$2:E145),Jaco[Column3],0) ),"") -> AnaSpec, Inc. | G145: =OFFSET($E$2,,,COUNTIF(Jaco[Column4],"?*")) -> AnaSpec, Inc.
A146: ANATECH | B146: Anatech | C146: =IF(ISNUMBER(SEARCH(DropBox,Jaco[Vendor Name])),1,0) -> 1 | D146: =IF(Jaco[Column2] = 1, SUM($C$2:C146),0) -> 145 | E146: =IFERROR(INDEX(Jaco[Vendor Name], MATCH(ROWS($E$2:E146),Jaco[Column3],0) ),"") -> Anatech | G146: =OFFSET($E$2,,,COUNTIF(Jaco[Column4],"?*")) -> Anatech
A147: ANATRACE | B147: Anatrace | C147: =IF(ISNUMBER(SEARCH(DropBox,Jaco[Vendor Name])),1,0) -> 1 | D147: =IF(Jaco[Column2] = 1, SUM($C$2:C147),0) -> 146 | E147: =IFERROR(INDEX(Jaco[Vendor Name], MATCH(ROWS($E$2:E147),Jaco[Column3],0) ),"") -> Anatrace | G147: =OFFSET($E$2,,,COUNTIF(Jaco[Column4],"?*")) -> Anatrace
A148: ANDER | B148: The Anderson Lawn Products | C148: =IF(ISNUMBER(SEARCH(DropBox,Jaco[Vendor Name])),1,0) -> 1 | D148: =IF(Jaco[Column2] = 1, SUM($C$2:C148),0) -> 147 | E148: =IFERROR(INDEX(Jaco[Vendor Name], MATCH(ROWS($E$2:E148),Jaco[Column3],0) ),"") -> The Anderson Lawn Products | G148: =OFFSET($E$2,,,COUNTIF(Jaco[Column4],"?*")) -> The Anderson Lawn Products
A149: ANDERSON | B149: Anderson Laboratories, Inc. | C149: =IF(ISNUMBER(SEARCH(DropBox,Jaco[Vendor Name])),1,0) -> 1 | D149: =IF(Jaco[Column2] = 1, SUM($C$2:C149),0) -> 148 | E149: =IFERROR(INDEX(Jaco[Vendor Name], MATCH(ROWS($E$2:E149),Jaco[Column3],0) ),"") -> Anderson Laboratories, Inc. | G149: =OFFSET($E$2,,,COUNTIF(Jaco[Column4],"?*")) -> Anderson Laboratories, Inc.
A150: ANISYN | B150: Anisyn Inc. | C150: =IF(ISNUMBER(SEARCH(DropBox,Jaco[Vendor Name])),1,0) -> 1 | D150: =IF(Jaco[Column2] = 1, SUM($C$2:C150),0) -> 149 | E150: =IFERROR(INDEX(Jaco[Vendor Name], MATCH(ROWS($E$2:E150),Jaco[Column3],0) ),"") -> Anisyn Inc. | G150: =OFFSET($E$2,,,COUNTIF(Jaco[Column4],"?*")) -> Anisyn Inc.
A151: APC | B151: American Peptide Company | C151: =IF(ISNUMBER(SEARCH(DropBox,Jaco[Vendor Name])),1,0) -> 1 | D151: =IF(Jaco[Column2] = 1, SUM($C$2:C151),0) -> 150 | E151: =IFERROR(INDEX(Jaco[Vendor Name], MATCH(ROWS($E$2:E151),Jaco[Column3],0) ),"") -> American Peptide Company | G151: =OFFSET($E$2,,,COUNTIF(Jaco[Column4],"?*")) -> American Peptide Company
A152: APEX | B152: Apex Engineering | C152: =IF(ISNUMBER(SEARCH(DropBox,Jaco[Vendor Name])),1,0) -> 1 | D152: =IF(Jaco[Column2] = 1, SUM($C$2:C152),0) -> 151 | E152: =IFERROR(INDEX(Jaco[Vendor Name], MATCH(ROWS($E$2:E152),Jaco[Column3],0) ),"") -> Apex Engineering | G152: =OFFSET($E$2,,,COUNTIF(Jaco[Column4],"?*")) -> Apex Engineering
A153: APEXBIO | B153: APEX BIOTECH LTD | C153: =IF(ISNUMBER(SEARCH(DropBox,Jaco[Vendor Name])),1,0) -> 1 | D153: =IF(Jaco[Column2] = 1, SUM($C$2:C153),0) -> 152 | E153: =IFERROR(INDEX(Jaco[Vendor Name], MATCH(ROWS($E$2:E153),Jaco[Column3],0) ),"") -> APEX BIOTECH LTD | G153: =OFFSET($E$2,,,COUNTIF(Jaco[Column4],"?*")) -> APEX BIOTECH LTD
A154: API | B154: AQUARIUM PHARMACEUTICALS INC | C154: =IF(ISNUMBER(SEARCH(DropBox,Jaco[Vendor Name])),1,0) -> 1 | D154: =IF(Jaco[Column2] = 1, SUM($C$2:C154),0) -> 153 | E154: =IFERROR(INDEX(Jaco[Vendor Name], MATCH(ROWS($E$2:E154),Jaco[Column3],0) ),"") -> AQUARIUM PHARMACEUTICALS INC | G154: =OFFSET($E$2,,,COUNTIF(Jaco[Column4],"?*")) -> AQUARIUM PHARMACEUTICALS INC
A155: APOLLO | B155: Apollo | C155: =IF(ISNUMBER(SEARCH(DropBox,Jaco[Vendor Name])),1,0) -> 1 | D155: =IF(Jaco[Column2] = 1, SUM($C$2:C155),0) -> 154 | E155: =IFERROR(INDEX(Jaco[Vendor Name], MATCH(ROWS($E$2:E155),Jaco[Column3],0) ),"") -> Apollo | G155: =OFFSET($E$2,,,COUNTIF(Jaco[Column4],"?*")) -> Apollo
A156: APOLLOSCI | B156: Apollo Scientific Ltd. | C156: =IF(ISNUMBER(SEARCH(DropBox,Jaco[Vendor Name])),1,0) -> 1 | D156: =IF(Jaco[Column2] = 1, SUM($C$2:C156),0) -> 155 | E156: =IFERROR(INDEX(Jaco[Vendor Name], MATCH(ROWS($E$2:E156),Jaco[Column3],0) ),"") -> Apollo Scientific Ltd. | G156: =OFFSET($E$2,,,COUNTIF(Jaco[Column4],"?*")) -> Apollo Scientific Ltd.
A157: APP | B157: APP PHARMACEUTICALS | C157: =IF(ISNUMBER(SEARCH(DropBox,Jaco[Vendor Name])),1,0) -> 1 | D157: =IF(Jaco[Column2] = 1, SUM($C$2:C157),0) -> 156 | E157: =IFERROR(INDEX(Jaco[Vendor Name], MATCH(ROWS($E$2:E157),Jaco[Column3],0) ),"") -> APP PHARMACEUTICALS | G157: =OFFSET($E$2,,,COUNTIF(Jaco[Column4],"?*")) -> APP PHARMACEUTICALS
A158: APPBIO | B158: Applied Biosystems | C158: =IF(ISNUMBER(SEARCH(DropBox,Jaco[Vendor Name])),1,0) -> 1 | D158: =IF(Jaco[Column2] = 1, SUM($C$2:C158),0) -> 157 | E158: =IFERROR(INDEX(Jaco[Vendor Name], MATCH(ROWS($E$2:E158),Jaco[Column3],0) ),"") -> Applied Biosystems | G158: =OFFSET($E$2,,,COUNTIF(Jaco[Column4],"?*")) -> Applied Biosystems
A159: APPBIOSYST | B159: APPLIED BIOSYSTEMS | C159: =IF(ISNUMBER(SEARCH(DropBox,Jaco[Vendor Name])),1,0) -> 1 | D159: =IF(Jaco[Column2] = 1, SUM($C$2:C159),0) -> 158 | E159: =IFERROR(INDEX(Jaco[Vendor Name], MATCH(ROWS($E$2:E159),Jaco[Column3],0) ),"") -> APPLIED BIOSYSTEMS | G159: =OFFSET($E$2,,,COUNTIF(Jaco[Column4],"?*")) -> APPLIED BIOSYSTEMS
A160: APPLICH | B160: AppliChem Inc. | C160: =IF(ISNUMBER(SEARCH(DropBox,Jaco[Vendor Name])),1,0) -> 1 | D160: =IF(Jaco[Column2] = 1, SUM($C$2:C160),0) -> 159 | E160: =IFERROR(INDEX(Jaco[Vendor Name], MATCH(ROWS($E$2:E160),Jaco[Column3],0) ),"") -> AppliChem Inc. | G160: =OFFSET($E$2,,,COUNTIF(Jaco[Column4],"?*")) -> AppliChem Inc.
A161: APPSCI | B161: Applied Science Laboratories Inc. | C161: =IF(ISNUMBER(SEARCH(DropBox,Jaco[Vendor Name])),1,0) -> 1 | D161: =IF(Jaco[Column2] = 1, SUM($C$2:C161),0) -> 160 | E161: =IFERROR(INDEX(Jaco[Vendor Name], MATCH(ROWS($E$2:E161),Jaco[Column3],0) ),"") -> Applied Science Laboratories Inc. | G161: =OFFSET($E$2,,,COUNTIF(Jaco[Column4],"?*")) -> Applied Science Laboratories Inc.
A162: APPTEC | B162: APPTEC | C162: =IF(ISNUMBER(SEARCH(DropBox,Jaco[Vendor Name])),1,0) -> 1 | D162: =IF(Jaco[Column2] = 1, SUM($C$2:C162),0) -> 161 | E162: =IFERROR(INDEX(Jaco[Vendor Name], MATCH(ROWS($E$2:E162),Jaco[Column3],0) ),"") -> APPTEC | G162: =OFFSET($E$2,,,COUNTIF(Jaco[Column4],"?*")) -> APPTEC
A163: AQUASOL | B163: Aqua Solutions | C163: =IF(ISNUMBER(SEARCH(DropBox,Jaco[Vendor Name])),1,0) -> 1 | D163: =IF(Jaco[Column2] = 1, SUM($C$2:C163),0) -> 162 | E163: =IFERROR(INDEX(Jaco[Vendor Name], MATCH(ROWS($E$2:E163),Jaco[Column3],0) ),"") -> Aqua Solutions | G163: =OFFSET($E$2,,,COUNTIF(Jaco[Column4],"?*")) -> Aqua Solutions
A164: AQUASOLU | B164: Aqua Solutions, Inc. | C164: =IF(ISNUMBER(SEARCH(DropBox,Jaco[Vendor Name])),1,0) -> 1 | D164: =IF(Jaco[Column2] = 1, SUM($C$2:C164),0) -> 163 | E164: =IFERROR(INDEX(Jaco[Vendor Name], MATCH(ROWS($E$2:E164),Jaco[Column3],0) ),"") -> Aqua Solutions, Inc. | G164: =OFFSET($E$2,,,COUNTIF(Jaco[Column4],"?*")) -> Aqua Solutions, Inc.
A165: AQUATROLS | B165: AQUATROLS COPRORATION OF AMERICA | C165: =IF(ISNUMBER(SEARCH(DropBox,Jaco[Vendor Name])),1,0) -> 1 | D165: =IF(Jaco[Column2] = 1, SUM($C$2:C165),0) -> 164 | E165: =IFERROR(INDEX(Jaco[Vendor Name], MATCH(ROWS($E$2:E165),Jaco[Column3],0) ),"") -> AQUATROLS COPRORATION OF AMERICA | G165: =OFFSET($E$2,,,COUNTIF(Jaco[Column4],"?*")) -> AQUATROLS COPRORATION OF AMERICA
A166: AQUILA | B166: Aquila Pharmatech LLC | C166: =IF(ISNUMBER(SEARCH(DropBox,Jaco[Vendor Name])),1,0) -> 1 | D166: =IF(Jaco[Column2] = 1, SUM($C$2:C166),0) -> 165 | E166: =IFERROR(INDEX(Jaco[Vendor Name], MATCH(ROWS($E$2:E166),Jaco[Column3],0) ),"") -> Aquila Pharmatech LLC | G166: =OFFSET($E$2,,,COUNTIF(Jaco[Column4],"?*")) -> Aquila Pharmatech LLC
A167: ARCH | B167: ARCH CHEMICALS INC. | C167: =IF(ISNUMBER(SEARCH(DropBox,Jaco[Vendor Name])),1,0) -> 1 | D167: =IF(Jaco[Column2] = 1, SUM($C$2:C167),0) -> 166 | E167: =IFERROR(INDEX(Jaco[Vendor Name], MATCH(ROWS($E$2:E167),Jaco[Column3],0) ),"") -> ARCH CHEMICALS INC. | G167: =OFFSET($E$2,,,COUNTIF(Jaco[Column4],"?*")) -> ARCH CHEMICALS INC.
A168: ARCON | B168: Arcon-Sunmark | C168: =IF(ISNUMBER(SEARCH(DropBox,Jaco[Vendor Name])),1,0) -> 1 | D168: =IF(Jaco[Column2] = 1, SUM($C$2:C168),0) -> 167 | E168: =IFERROR(INDEX(Jaco[Vendor Name], MATCH(ROWS($E$2:E168),Jaco[Column3],0) ),"") -> Arcon-Sunmark | G168: =OFFSET($E$2,,,COUNTIF(Jaco[Column4],"?*")) -> Arcon-Sunmark
A169: ARCOS | B169: Arcos Organics | C169: =IF(ISNUMBER(SEARCH(DropBox,Jaco[Vendor Name])),1,0) -> 1 | D169: =IF(Jaco[Column2] = 1, SUM($C$2:C169),0) -> 168 | E169: =IFERROR(INDEX(Jaco[Vendor Name], MATCH(ROWS($E$2:E169),Jaco[Column3],0) ),"") -> Arcos Organics | G169: =OFFSET($E$2,,,COUNTIF(Jaco[Column4],"?*")) -> Arcos Organics
A170: ARCUTURUS | B170: ARCUTURUS | C170: =IF(ISNUMBER(SEARCH(DropBox,Jaco[Vendor Name])),1,0) -> 1 | D170: =IF(Jaco[Column2] = 1, SUM($C$2:C170),0) -> 169 | E170: =IFERROR(INDEX(Jaco[Vendor Name], MATCH(ROWS($E$2:E170),Jaco[Column3],0) ),"") -> ARCUTURUS | G170: =OFFSET($E$2,,,COUNTIF(Jaco[Column4],"?*")) -> ARCUTURUS
A171: ARdent | B171: ARdent International | C171: =IF(ISNUMBER(SEARCH(DropBox,Jaco[Vendor Name])),1,0) -> 1 | D171: =IF(Jaco[Column2] = 1, SUM($C$2:C171),0) -> 170 | E171: =IFERROR(INDEX(Jaco[Vendor Name], MATCH(ROWS($E$2:E171),Jaco[Column3],0) ),"") -> ARdent International | G171: =OFFSET($E$2,,,COUNTIF(Jaco[Column4],"?*")) -> ARdent International
A172: AREMCO | B172: AREMCO PRODUCTS INC. | C172: =IF(ISNUMBER(SEARCH(DropBox,Jaco[Vendor Name])),1,0) -> 1 | D172: =IF(Jaco[Column2] = 1, SUM($C$2:C172),0) -> 171 | E172: =IFERROR(INDEX(Jaco[Vendor Name], MATCH(ROWS($E$2:E172),Jaco[Column3],0) ),"") -> AREMCO PRODUCTS INC. | G172: =OFFSET($E$2,,,COUNTIF(Jaco[Column4],"?*")) -> AREMCO PRODUCTS INC.
A173: ARKEMA | B173: Arkema | C173: =IF(ISNUMBER(SEARCH(DropBox,Jaco[Vendor Name])),1,0) -> 1 | D173: =IF(Jaco[Column2] = 1, SUM($C$2:C173),0) -> 172 | E173: =IFERROR(INDEX(Jaco[Vendor Name], MATCH(ROWS($E$2:E173),Jaco[Column3],0) ),"") -> Arkema | G173: =OFFSET($E$2,,,COUNTIF(Jaco[Column4],"?*")) -> Arkema
A174: ARKPHAR | B174: Ark Pharm, Inc. | C174: =IF(ISNUMBER(SEARCH(DropBox,Jaco[Vendor Name])),1,0) -> 1 | D174: =IF(Jaco[Column2] = 1, SUM($C$2:C174),0) -> 173 | E174: =IFERROR(INDEX(Jaco[Vendor Name], MATCH(ROWS($E$2:E174),Jaco[Column3],0) ),"") -> Ark Pharm, Inc. | G174: =OFFSET($E$2,,,COUNTIF(Jaco[Column4],"?*")) -> Ark Pharm, Inc.
A175: ART SPEC | B175: ART SPECTRUM | C175: =IF(ISNUMBER(SEARCH(DropBox,Jaco[Vendor Name])),1,0) -> 1 | D175: =IF(Jaco[Column2] = 1, SUM($C$2:C175),0) -> 174 | E175: =IFERROR(INDEX(Jaco[Vendor Name], MATCH(ROWS($E$2:E175),Jaco[Column3],0) ),"") -> ART SPECTRUM | G175: =OFFSET($E$2,,,COUNTIF(Jaco[Column4],"?*")) -> ART SPECTRUM
A176: ARTCHEM | B176: Art Chemicals | C176: =IF(ISNUMBER(SEARCH(DropBox,Jaco[Vendor Name])),1,0) -> 1 | D176: =IF(Jaco[Column2] = 1, SUM($C$2:C176),0) -> 175 | E176: =IFERROR(INDEX(Jaco[Vendor Name], MATCH(ROWS($E$2:E176),Jaco[Column3],0) ),"") -> Art Chemicals | G176: =OFFSET($E$2,,,COUNTIF(Jaco[Column4],"?*")) -> Art Chemicals
A177: ASCENT | B177: ASCENT | C177: =IF(ISNUMBER(SEARCH(DropBox,Jaco[Vendor Name])),1,0) -> 1 | D177: =IF(Jaco[Column2] = 1, SUM($C$2:C177),0) -> 176 | E177: =IFERROR(INDEX(Jaco[Vendor Name], MATCH(ROWS($E$2:E177),Jaco[Column3],0) ),"") -> ASCENT | G177: =OFFSET($E$2,,,COUNTIF(Jaco[Column4],"?*")) -> ASCENT
A178: ASEPSIS | B178: ASEPSIS, INC. | C178: =IF(ISNUMBER(SEARCH(DropBox,Jaco[Vendor Name])),1,0) -> 1 | D178: =IF(Jaco[Column2] = 1, SUM($C$2:C178),0) -> 177 | E178: =IFERROR(INDEX(Jaco[Vendor Name], MATCH(ROWS($E$2:E178),Jaco[Column3],0) ),"") -> ASEPSIS, INC. | G178: =OFFSET($E$2,,,COUNTIF(Jaco[Column4],"?*")) -> ASEPSIS, INC.
A179: ASHLAND | B179: Ashland Chemical | C179: =IF(ISNUMBER(SEARCH(DropBox,Jaco[Vendor Name])),1,0) -> 1 | D179: =IF(Jaco[Column2] = 1, SUM($C$2:C179),0) -> 178 | E179: =IFERROR(INDEX(Jaco[Vendor Name], MATCH(ROWS($E$2:E179),Jaco[Column3],0) ),"") -> Ashland Chemical | G179: =OFFSET($E$2,,,COUNTIF(Jaco[Column4],"?*")) -> Ashland Chemical
A180: ASHLND | B180: Ashland | C180: =IF(ISNUMBER(SEARCH(DropBox,Jaco[Vendor Name])),1,0) -> 1 | D180: =IF(Jaco[Column2] = 1, SUM($C$2:C180),0) -> 179 | E180: =IFERROR(INDEX(Jaco[Vendor Name], MATCH(ROWS($E$2:E180),Jaco[Column3],0) ),"") -> Ashland | G180: =OFFSET($E$2,,,COUNTIF(Jaco[Column4],"?*")) -> Ashland
A181: ASPIRA | B181: Aspira Scientific | C181: =IF(ISNUMBER(SEARCH(DropBox,Jaco[Vendor Name])),1,0) -> 1 | D181: =IF(Jaco[Column2] = 1, SUM($C$2:C181),0) -> 180 | E181: =IFERROR(INDEX(Jaco[Vendor Name], MATCH(ROWS($E$2:E181),Jaco[Column3],0) ),"") -> Aspira Scientific | G181: =OFFSET($E$2,,,COUNTIF(Jaco[Column4],"?*")) -> Aspira Scientific
A182: ASTATCH | B182: AstaTech, Inc | C182: =IF(ISNUMBER(SEARCH(DropBox,Jaco[Vendor Name])),1,0) -> 1 | D182: =IF(Jaco[Column2] = 1, SUM($C$2:C182),0) -> 181 | E182: =IFERROR(INDEX(Jaco[Vendor Name], MATCH(ROWS($E$2:E182),Jaco[Column3],0) ),"") -> AstaTech, Inc | G182: =OFFSET($E$2,,,COUNTIF(Jaco[Column4],"?*")) -> AstaTech, Inc
A183: ASTATEC | B183: AstaTech Inc. | C183: =IF(ISNUMBER(SEARCH(DropBox,Jaco[Vendor Name])),1,0) -> 1 | D183: =IF(Jaco[Column2] = 1, SUM($C$2:C183),0) -> 182 | E183: =IFERROR(INDEX(Jaco[Vendor Name], MATCH(ROWS($E$2:E183),Jaco[Column3],0) ),"") -> AstaTech Inc. | G183: =OFFSET($E$2,,,COUNTIF(Jaco[Column4],"?*")) -> AstaTech Inc.
A184: ASTATECH | B184: AstaTech (Chengdu) Biopharm Co., Lt | C184: =IF(ISNUMBER(SEARCH(DropBox,Jaco[Vendor Name])),1,0) -> 1 | D184: =IF(Jaco[Column2] = 1, SUM($C$2:C184),0) -> 183 | E184: =IFERROR(INDEX(Jaco[Vendor Name], MATCH(ROWS($E$2:E184),Jaco[Column3],0) ),"") -> AstaTech (Chengdu) Biopharm Co., Lt | G184: =OFFSET($E$2,,,COUNTIF(Jaco[Column4],"?*")) -> AstaTech (Chengdu) Biopharm Co., Lt
A185: ASTRA PHAR | B185: ASTRA PHARMACEUTICAL PRODUCTS, INC | C185: =IF(ISNUMBER(SEARCH(DropBox,Jaco[Vendor Name])),1,0) -> 1 | D185: =IF(Jaco[Column2] = 1, SUM($C$2:C185),0) -> 184 | E185: =IFERROR(INDEX(Jaco[Vendor Name], MATCH(ROWS($E$2:E185),Jaco[Column3],0) ),"") -> ASTRA PHARMACEUTICAL PRODUCTS, INC | G185: =OFFSET($E$2,,,COUNTIF(Jaco[Column4],"?*")) -> ASTRA PHARMACEUTICAL PRODUCTS, INC
A186: ASTRAZENEC | B186: Astrazeneca Pharmaceutical LP | C186: =IF(ISNUMBER(SEARCH(DropBox,Jaco[Vendor Name])),1,0) -> 1 | D186: =IF(Jaco[Column2] = 1, SUM($C$2:C186),0) -> 185 | E186: =IFERROR(INDEX(Jaco[Vendor Name], MATCH(ROWS($E$2:E186),Jaco[Column3],0) ),"") -> Astrazeneca Pharmaceutical LP | G186: =OFFSET($E$2,,,COUNTIF(Jaco[Column4],"?*")) -> Astrazeneca Pharmaceutical LP
A187: ATCC | B187: ATCC | C187: =IF(ISNUMBER(SEARCH(DropBox,Jaco[Vendor Name])),1,0) -> 1 | D187: =IF(Jaco[Column2] = 1, SUM($C$2:C187),0) -> 186 | E187: =IFERROR(INDEX(Jaco[Vendor Name], MATCH(ROWS($E$2:E187),Jaco[Column3],0) ),"") -> ATCC | G187: =OFFSET($E$2,,,COUNTIF(Jaco[Column4],"?*")) -> ATCC
A188: ATLANTIC | B188: ATLANTIC CHEMICAL EQUIPMENT CO. | C188: =IF(ISNUMBER(SEARCH(DropBox,Jaco[Vendor Name])),1,0) -> 1 | D188: =IF(Jaco[Column2] = 1, SUM($C$2:C188),0) -> 187 | E188: =IFERROR(INDEX(Jaco[Vendor Name], MATCH(ROWS($E$2:E188),Jaco[Column3],0) ),"") -> ATLANTIC CHEMICAL EQUIPMENT CO. | G188: =OFFSET($E$2,,,COUNTIF(Jaco[Column4],"?*")) -> ATLANTIC CHEMICAL EQUIPMENT CO.
A189: ATLAS | B189: ATLAS GLASS | C189: =IF(ISNUMBER(SEARCH(DropBox,Jaco[Vendor Name])),1,0) -> 1 | D189: =IF(Jaco[Column2] = 1, SUM($C$2:C189),0) -> 188 | E189: =IFERROR(INDEX(Jaco[Vendor Name], MATCH(ROWS($E$2:E189),Jaco[Column3],0) ),"") -> ATLAS GLASS | G189: =OFFSET($E$2,,,COUNTIF(Jaco[Column4],"?*")) -> ATLAS GLASS
A190: ATLBiologi | B190: Atlanta Biologicals | C190: =IF(ISNUMBER(SEARCH(DropBox,Jaco[Vendor Name])),1,0) -> 1 | D190: =IF(Jaco[Column2] = 1, SUM($C$2:C190),0) -> 189 | E190: =IFERROR(INDEX(Jaco[Vendor Name], MATCH(ROWS($E$2:E190),Jaco[Column3],0) ),"") -> Atlanta Biologicals | G190: =OFFSET($E$2,,,COUNTIF(Jaco[Column4],"?*")) -> Atlanta Biologicals
A191: ATLEQUIP | B191: Atlantic Equipment Engineers | C191: =IF(ISNUMBER(SEARCH(DropBox,Jaco[Vendor Name])),1,0) -> 1 | D191: =IF(Jaco[Column2] = 1, SUM($C$2:C191),0) -> 190 | E191: =IFERROR(INDEX(Jaco[Vendor Name], MATCH(ROWS($E$2:E191),Jaco[Column3],0) ),"") -> Atlantic Equipment Engineers | G191: =OFFSET($E$2,,,COUNTIF(Jaco[Column4],"?*")) -> Atlantic Equipment Engineers
A192: ATOMAD | B192: Atom Adhesives | C192: =IF(ISNUMBER(SEARCH(DropBox,Jaco[Vendor Name])),1,0) -> 1 | D192: =IF(Jaco[Column2] = 1, SUM($C$2:C192),0) -> 191 | E192: =IFERROR(INDEX(Jaco[Vendor Name], MATCH(ROWS($E$2:E192),Jaco[Column3],0) ),"") -> Atom Adhesives | G192: =OFFSET($E$2,,,COUNTIF(Jaco[Column4],"?*")) -> Atom Adhesives
A193: ATTCC | B193: ATTCC Global Biosource Center | C193: =IF(ISNUMBER(SEARCH(DropBox,Jaco[Vendor Name])),1,0) -> 1 | D193: =IF(Jaco[Column2] = 1, SUM($C$2:C193),0) -> 192 | E193: =IFERROR(INDEX(Jaco[Vendor Name], MATCH(ROWS($E$2:E193),Jaco[Column3],0) ),"") -> ATTCC Global Biosource Center | G193: =OFFSET($E$2,,,COUNTIF(Jaco[Column4],"?*")) -> ATTCC Global Biosource Center
A194: AURUM | B194: Aurum Pharmatech LLC | C194: =IF(ISNUMBER(SEARCH(DropBox,Jaco[Vendor Name])),1,0) -> 1 | D194: =IF(Jaco[Column2] = 1, SUM($C$2:C194),0) -> 193 | E194: =IFERROR(INDEX(Jaco[Vendor Name], MATCH(ROWS($E$2:E194),Jaco[Column3],0) ),"") -> Aurum Pharmatech LLC | G194: =OFFSET($E$2,,,COUNTIF(Jaco[Column4],"?*")) -> Aurum Pharmatech LLC
A195: AUSTRAL | B195: Austral Biological | C195: =IF(ISNUMBER(SEARCH(DropBox,Jaco[Vendor Name])),1,0) -> 1 | D195: =IF(Jaco[Column2] = 1, SUM($C$2:C195),0) -> 194 | E195: =IFERROR(INDEX(Jaco[Vendor Name], MATCH(ROWS($E$2:E195),Jaco[Column3],0) ),"") -> Austral Biological | G195: =OFFSET($E$2,,,COUNTIF(Jaco[Column4],"?*")) -> Austral Biological
A196: AUTO | B196: AUTO WAX COMPANY | C196: =IF(ISNUMBER(SEARCH(DropBox,Jaco[Vendor Name])),1,0) -> 1 | D196: =IF(Jaco[Column2] = 1, SUM($C$2:C196),0) -> 195 | E196: =IFERROR(INDEX(Jaco[Vendor Name], MATCH(ROWS($E$2:E196),Jaco[Column3],0) ),"") -> AUTO WAX COMPANY | G196: =OFFSET($E$2,,,COUNTIF(Jaco[Column4],"?*")) -> AUTO WAX COMPANY
A197: AVACHEM | B197: AvaChem Scientific LLC | C197: =IF(ISNUMBER(SEARCH(DropBox,Jaco[Vendor Name])),1,0) -> 1 | D197: =IF(Jaco[Column2] = 1, SUM($C$2:C197),0) -> 196 | E197: =IFERROR(INDEX(Jaco[Vendor Name], MATCH(ROWS($E$2:E197),Jaco[Column3],0) ),"") -> AvaChem Scientific LLC | G197: =OFFSET($E$2,,,COUNTIF(Jaco[Column4],"?*")) -> AvaChem Scientific LLC
A198: AVANTI | B198: AVANTI POLAR LIPIDS INC. | C198: =IF(ISNUMBER(SEARCH(DropBox,Jaco[Vendor Name])),1,0) -> 1 | D198: =IF(Jaco[Column2] = 1, SUM($C$2:C198),0) -> 197 | E198: =IFERROR(INDEX(Jaco[Vendor Name], MATCH(ROWS($E$2:E198),Jaco[Column3],0) ),"") -> AVANTI POLAR LIPIDS INC. | G198: =OFFSET($E$2,,,COUNTIF(Jaco[Column4],"?*")) -> AVANTI POLAR LIPIDS INC.
A199: AVANTIBIO | B199: AVANTI BIOCHEMICALS, INC. | C199: =IF(ISNUMBER(SEARCH(DropBox,Jaco[Vendor Name])),1,0) -> 1 | D199: =IF(Jaco[Column2] = 1, SUM($C$2:C199),0) -> 198 | E199: =IFERROR(INDEX(Jaco[Vendor Name], MATCH(ROWS($E$2:E199),Jaco[Column3],0) ),"") -> AVANTI BIOCHEMICALS, INC. | G199: =OFFSET($E$2,,,COUNTIF(Jaco[Column4],"?*")) -> AVANTI BIOCHEMICALS, INC.
A200: AVANTILIP | B200: Avanti Polar Lipids, Inc. | C200: =IF(ISNUMBER(SEARCH(DropBox,Jaco[Vendor Name])),1,0) -> 1 | D200: =IF(Jaco[Column2] = 1, SUM($C$2:C200),0) -> 199 | E200: =IFERROR(INDEX(Jaco[Vendor Name], MATCH(ROWS($E$2:E200),Jaco[Column3],0) ),"") -> Avanti Polar Lipids, Inc. | G200: =OFFSET($E$2,,,COUNTIF(Jaco[Column4],"?*")) -> Avanti Polar Lipids, Inc.
... 1724 more rows
